Department,Entity, Transaction Date, Expense Type, Expense Area, Supplier Name,Transaction number, Amount, Invoice Description
FCDO,CSC,12/03/2021,Tuition Fee,Award costs,University of Bradford,PIN051570,-3208,
FCDO,CSC,01/03/2021,Bank Charges,Programme Costs,MasterCard Prepaid Management Services Ltd,PIN051592,11.53,
FCDO,CSC,01/03/2021,Exceptional stipend,Award costs,Scholar,PIN051592,1153.35,
FCDO,CSC,05/03/2021,Immigration Health Surcharge,Award costs,Scholar,PIN051594,235,
FCDO,CSC,05/03/2021,Visa Costs,Award costs,Scholar,PIN051594,494.2,
FCDO,CSC,05/03/2021,Scholar Travel,Award costs,Cranfield University,PIN051597,820.9,
FCDO,CSC,05/03/2021,Scholar Travel,Award costs,Cranfield University,PIN051600,887.8,
FCDO,CSC,05/03/2021,Immigration Health Surcharge,Award costs,Scholar,PIN051601,235,
FCDO,CSC,05/03/2021,Visa Costs,Award costs,Scholar,PIN051601,566.18,
FCDO,CSC,05/03/2021,Immigration Health Surcharge,Award costs,Scholar,PIN051603,470,
FCDO,CSC,05/03/2021,Visa Costs,Award costs,Scholar,PIN051603,494.2,
FCDO,CSC,05/03/2021,Immigration Health Surcharge,Award costs,Scholar,PIN051604,235,
FCDO,CSC,05/03/2021,Visa Costs,Award costs,Scholar,PIN051604,494.2,
FCDO,CSC,05/03/2021,Scholar Travel,Award costs,University of Glasgow,PIN051606,561.11,
FCDO,CSC,05/03/2021,Scholar Travel,Award costs,University of Glasgow,PIN051607,596.11,
FCDO,CSC,05/03/2021,Scholar Travel,Award costs,University of Glasgow,PIN051608,836.53,
FCDO,CSC,05/03/2021,Scholar Travel,Award costs,University of Glasgow,PIN051609,1167.82,
FCDO,CSC,05/03/2021,Scholar Allowances,Award costs,University of Glasgow,PIN051610,1300,
FCDO,CSC,05/03/2021,Scholar Travel,Award costs,Cranfield University,PIN051614,559.67,
DFE,CSC,05/03/2021,Award Support Costs,Award costs,Kings College London,PIN051616,5000,
DFE,CSC,05/03/2021,Scholar Allowances,Award costs,Kings College London,PIN051616,50,
DFE,CSC,05/03/2021,Scholar Stipend,Award costs,Kings College London,PIN051616,16428,
DFE,CSC,05/03/2021,Tuition Fee,Award costs,Kings College London,PIN051616,24570,
FCDO,CSC,05/03/2021,Tuition Fee,Award costs,The University of Leeds,PIN051617,15600,
FCDO,CSC,05/03/2021,Tuition Fee,Award costs,University of Aberdeen,PIN051619,4770,
FCDO,CSC,05/03/2021,Tuition Fee,Award costs,University of Aberdeen,PIN051620,3700,
FCDO,CSC,05/03/2021,Tuition Fee,Award costs,University of Aberdeen,PIN051621,2775,
FCDO,CSC,05/03/2021,Tuition Fee,Award costs,University of Aberdeen,PIN051622,1850,
FCDO,CSC,05/03/2021,Tuition Fee,Award costs,University of Aberdeen,PIN051623,4770,
FCDO,CSC,05/03/2021,Tuition Fee,Award costs,University of Aberdeen,PIN051624,4770,
FCDO,CSC,05/03/2021,Tuition Fee,Award costs,University of Aberdeen,PIN051625,6360,
FCDO,CSC,05/03/2021,Tuition Fee,Award costs,University of Aberdeen,PIN051626,3700,
FCDO,CSC,05/03/2021,Tuition Fee,Award costs,University of Aberdeen,PIN051627,2775,
FCDO,CSC,05/03/2021,Tuition Fee,Award costs,University of Aberdeen,PIN051628,3700,
FCDO,CSC,05/03/2021,Tuition Fee,Award costs,University of Aberdeen,PIN051629,3700,
FCDO,CSC,05/03/2021,Tuition Fee,Award costs,University of Aberdeen,PIN051630,3700,
FCDO,CSC,05/03/2021,Tuition Fee,Award costs,University of Aberdeen,PIN051631,1850,
FCDO,CSC,05/03/2021,Tuition Fee,Award costs,University of Aberdeen,PIN051632,3700,
FCDO,CSC,05/03/2021,Tuition Fee,Award costs,University of Aberdeen,PIN051633,3700,
FCDO,CSC,05/03/2021,Tuition Fee,Award costs,University of Aberdeen,PIN051634,3700,
FCDO,CSC,05/03/2021,Award Support Costs,Award costs,Kings College London,PIN051635,5000,
FCDO,CSC,05/03/2021,Tuition Fee,Award costs,The University of Birmingham,PIN051636,18450,
FCDO,CSC,05/03/2021,Tuition Fee,Award costs,The University of Birmingham,PIN051637,18450,
FCDO,CSC,05/03/2021,Tuition Fee,Award costs,Swansea University,PIN051638,16320,
FCDO,CSC,05/03/2021,Award Support Costs,Award costs,Swansea University,PIN051639,1667,
FCDO,CSC,05/03/2021,Tuition Fee,Award costs,University of Sheffield,PIN051640,15840,
FCDO,CSC,05/03/2021,Tuition Fee,Award costs,Birmingham City University,PIN051641,10240,
FCDO,CSC,05/03/2021,Immigration Health Surcharge,Award costs,Scholar,PIN051642,235,
FCDO,CSC,05/03/2021,Visa Costs,Award costs,Scholar,PIN051642,494.2,
FCDO,CSC,05/03/2021,Alumni Engagement,Programme Costs,TFW Printers,PIN051643,3192,
FCDO,CSC,05/03/2021,Printing,Programme Costs,TFW Printers,PIN051645,1467.6,
FCDO,CSC,05/03/2021,Interview Costs,Programme Costs,Way With Words Group,PIN051646,842.52,
FCDO,CSC,03/03/2021,Scholar Stipend,Award costs,Scholar,PIN051648,1362,
FCDO,CSC,03/03/2021,Scholar Allowances,Award costs,Scholar,PIN051649,240,
FCDO,CSC,03/03/2021,Scholar Allowances,Award costs,Scholar,PIN051649,476,
FCDO,CSC,03/03/2021,Scholar Stipend,Award costs,Scholar,PIN051649,1116,
FCDO,CSC,03/03/2021,Scholar Stipend,Award costs,Scholar,PIN051650,568.31,
FCDO,CSC,04/03/2021,Scholar Stipend,Award costs,Scholar,PIN051651,1116,
FCDO,CSC,04/03/2021,Scholar Stipend,Award costs,Scholar,PIN051653,1099.96,
FCDO,CSC,03/03/2021,Scholar Allowances,Award costs,Scholar,PIN051654,958.22,
FCDO,CSC,03/03/2021,Start-up Allowance,Award costs,Scholar,PIN051654,150,
FCDO,CSC,03/03/2021,Start-up Allowance,Award costs,Scholar,PIN051654,150,
FCDO,CSC,03/03/2021,Start-up Allowance,Award costs,Scholar,PIN051654,150,
FCDO,CSC,03/03/2021,Start-up Allowance,Award costs,Scholar,PIN051654,150,
FCDO,CSC,03/03/2021,Scholar Allowances,Award costs,Scholar,PIN051654,433,
FCDO,CSC,03/03/2021,Scholar Stipend,Award costs,Scholar,PIN051654,1704,
FCDO,CSC,03/03/2021,Scholar Stipend,Award costs,Scholar,PIN051654,962.28,
FCDO,CSC,03/03/2021,Scholar Stipend,Award costs,Scholar,PIN051654,1404.89,
FCDO,CSC,03/03/2021,Scholar Stipend,Award costs,Scholar,PIN051654,1404.89,
FCDO,CSC,03/03/2021,Scholar Stipend,Award costs,Scholar,PIN051654,1597.14,
FCDO,CSC,03/03/2021,Start-up Allowance,Award costs,Scholar,PIN051654,150,
FCDO,CSC,03/03/2021,Start-up Allowance,Award costs,Scholar,PIN051654,150,
FCDO,CSC,03/03/2021,Start-up Allowance,Award costs,Scholar,PIN051654,150,
FCDO,CSC,03/03/2021,Start-up Allowance,Award costs,Scholar,PIN051654,150,
FCDO,CSC,03/03/2021,Start-up Allowance,Award costs,Scholar,PIN051654,150,
FCDO,CSC,03/03/2021,Start-up Allowance,Award costs,Scholar,PIN051654,150,
FCDO,CSC,03/03/2021,Start-up Allowance,Award costs,Scholar,PIN051654,150,
FCDO,CSC,03/03/2021,Start-up Allowance,Award costs,Scholar,PIN051654,150,
FCDO,CSC,03/03/2021,Scholar Allowances,Award costs,Scholar,PIN051654,433,
FCDO,CSC,03/03/2021,Scholar Stipend,Award costs,Scholar,PIN051654,844.77,
FCDO,CSC,03/03/2021,Scholar Stipend,Award costs,Scholar,PIN051654,1294.23,
FCDO,CSC,03/03/2021,Scholar Stipend,Award costs,Scholar,PIN051654,1404.88,
FCDO,CSC,03/03/2021,Scholar Stipend,Award costs,Scholar,PIN051654,1294.23,
FCDO,CSC,03/03/2021,Scholar Stipend,Award costs,Scholar,PIN051654,1199.39,
FCDO,CSC,03/03/2021,Scholar Stipend,Award costs,Scholar,PIN051654,2023.29,
FCDO,CSC,03/03/2021,Scholar Stipend,Award costs,Scholar,PIN051654,1183.58,
FCDO,CSC,03/03/2021,Scholar Stipend,Award costs,Scholar,PIN051654,1443.42,
FCDO,CSC,03/03/2021,Bank Charges,Programme Costs,MasterCard Prepaid Management Services Ltd,PIN051654,213.84,
FCDO,CSC,12/03/2021,Immigration Health Surcharge,Award costs,Scholar,PIN051655,470,
FCDO,CSC,12/03/2021,Visa Costs,Award costs,Scholar,PIN051655,494.2,
FCDO,CSC,12/03/2021,Scholar Travel,Award costs,The University of Leeds,PIN051656,3000.1,
FCDO,CSC,12/03/2021,Tuition Fee,Award costs,The University of Leeds,PIN051657,132750,
FCDO,CSC,12/03/2021,Visa Costs,Award costs,The University of Leeds,PIN051658,719,
FCDO,CSC,12/03/2021,Tuition Fee,Award costs,University of Newcastle upon Tyne,PIN051659,22500,
FCDO,CSC,12/03/2021,Tuition Fee,Award costs,The University of York,PIN051660,5075,
FCDO,CSC,12/03/2021,Tuition Fee,Award costs,The University of York,PIN051661,5075,
FCDO,CSC,12/03/2021,Tuition Fee,Award costs,The University of York,PIN051662,5075,
FCDO,CSC,12/03/2021,Tuition Fee,Award costs,The University of York,PIN051663,5075,
FCDO,CSC,12/03/2021,Tuition Fee,Award costs,The University of York,PIN051664,5075,
FCDO,CSC,12/03/2021,Tuition Fee,Award costs,The University of York,PIN051665,5075,
FCDO,CSC,12/03/2021,Tuition Fee,Award costs,The University of York,PIN051666,5075,
FCDO,CSC,12/03/2021,Tuition Fee,Award costs,The University of York,PIN051667,5220,
FCDO,CSC,12/03/2021,Tuition Fee,Award costs,The University of York,PIN051668,5220,
FCDO,CSC,12/03/2021,Tuition Fee,Award costs,The University of York,PIN051669,5220,
FCDO,CSC,12/03/2021,Tuition Fee,Award costs,The University of York,PIN051670,5220,
FCDO,CSC,12/03/2021,Tuition Fee,Award costs,The University of York,PIN051671,5220,
FCDO,CSC,12/03/2021,Tuition Fee,Award costs,Royal Veterinary College,PIN051672,110760,
FCDO,CSC,12/03/2021,Scholar Allowances,Award costs,Royal Veterinary College,PIN051672,1125,
FCDO,CSC,12/03/2021,Visa Costs,Award costs,Institute of Development Studies,PIN051673,120.6,
FCDO,CSC,12/03/2021,Scholar Travel,Award costs,Institute of Development Studies,PIN051673,900,
FCDO,CSC,12/03/2021,Tuition Fee,Award costs,University of Sussex,PIN051674,11662,
FCDO,CSC,12/03/2021,Tuition Fee,Award costs,The University of York,PIN051675,4925,
FCDO,CSC,12/03/2021,Tuition Fee,Award costs,The University of York,PIN051676,5075,
FCDO,CSC,12/03/2021,Tuition Fee,Award costs,The University of York,PIN051677,4925,
FCDO,CSC,12/03/2021,Tuition Fee,Award costs,The University of York,PIN051678,4925,
FCDO,CSC,12/03/2021,Tuition Fee,Award costs,The University of York,PIN051679,5075,
FCDO,CSC,12/03/2021,Tuition Fee,Award costs,The University of York,PIN051680,5075,
FCDO,CSC,12/03/2021,Tuition Fee,Award costs,The University of York,PIN051681,5075,
FCDO,CSC,12/03/2021,Tuition Fee,Award costs,The University of York,PIN051682,5075,
FCDO,CSC,12/03/2021,Tuition Fee,Award costs,The University of York,PIN051683,5075,
FCDO,CSC,12/03/2021,Tuition Fee,Award costs,The University of York,PIN051684,5075,
FCDO,CSC,12/03/2021,Tuition Fee,Award costs,The University of York,PIN051685,4925,
FCDO,CSC,12/03/2021,Tuition Fee,Award costs,The University of York,PIN051686,4702,
FCDO,CSC,12/03/2021,Tuition Fee,Award costs,The University of York,PIN051687,4702,
FCDO,CSC,12/03/2021,Tuition Fee,Award costs,The University of York,PIN051688,4775,
FCDO,CSC,12/03/2021,Tuition Fee,Award costs,The University of York,PIN051689,4775,
FCDO,CSC,12/03/2021,Tuition Fee,Award costs,The University of York,PIN051690,4775,
FCDO,CSC,12/03/2021,Tuition Fee,Award costs,The University of York,PIN051691,4775,
FCDO,CSC,12/03/2021,Tuition Fee,Award costs,The University of York,PIN051692,4775,
FCDO,CSC,12/03/2021,Tuition Fee,Award costs,The University of York,PIN051693,4775,
FCDO,CSC,12/03/2021,Tuition Fee,Award costs,The University of York,PIN051694,4775,
FCDO,CSC,12/03/2021,Tuition Fee,Award costs,The University of York,PIN051695,4775,
FCDO,CSC,12/03/2021,Tuition Fee,Award costs,The University of York,PIN051696,4775,
FCDO,CSC,12/03/2021,Tuition Fee,Award costs,The University of York,PIN051697,4775,
FCDO,CSC,12/03/2021,Tuition Fee,Award costs,University of Bristol,PIN051698,19700,
FCDO,CSC,12/03/2021,Tuition Fee,Award costs,University of East Anglia,PIN051699,12720,
FCDO,CSC,12/03/2021,Tuition Fee,Award costs,University of Strathclyde,PIN051700,15800,
FCDO,CSC,12/03/2021,Tuition Fee,Award costs,University of Strathclyde,PIN051701,16720,
FCDO,CSC,12/03/2021,Award Support Costs,Award costs,University of Strathclyde,PIN051702,5000,
FCDO,CSC,12/03/2021,Scholar Allowances,Award costs,Birmingham City University,PIN051703,980,
FCDO,CSC,12/03/2021,Scholar Travel,Award costs,Birmingham City University,PIN051703,285,
FCDO,CSC,12/03/2021,Scholar Travel,Award costs,Birmingham City University,PIN051703,3540,
FCDO,CSC,12/03/2021,Award Support Costs,Award costs,Royal Veterinary College,PIN051705,5000,
FCDO,CSC,12/03/2021,Tuition Fee,Award costs,Royal Veterinary College,PIN051705,18000,
FCDO,CSC,12/03/2021,Scholar Travel,Award costs,Royal Veterinary College,PIN051706,1376.22,
FCDO,CSC,12/03/2021,Award Support Costs,Award costs,Royal Veterinary College,PIN051706,5000,
FCDO,CSC,12/03/2021,Tuition Fee,Award costs,Royal Veterinary College,PIN051706,18000,
FCDO,CSC,12/03/2021,Tuition Fee,Award costs,ST Anne's College Oxford,PIN051707,12000,
FCDO,CSC,12/03/2021,Tuition Fee,Award costs,University of Exeter,PIN051708,14360,
FCDO,CSC,12/03/2021,Tuition Fee,Award costs,Green Templeton College,PIN051709,12000,
FCDO,CSC,12/03/2021,Tuition Fee,Award costs,University of Reading,PIN051710,15464,
FCDO,CSC,12/03/2021,Tuition Fee,Award costs,Lond Sch Hygiene & Tropical Me,PIN051711,9749.6,
FCDO,CSC,12/03/2021,Tuition Fee,Award costs,Lond Sch Hygiene & Tropical Me,PIN051712,9749.6,
FCDO,CSC,12/03/2021,Tuition Fee,Award costs,Lond Sch Hygiene & Tropical Me,PIN051713,3683.84,
FCDO,CSC,12/03/2021,Tuition Fee,Award costs,University of Strathclyde,PIN051714,16720,
FCDO,CSC,12/03/2021,Tuition Fee,Award costs,University College London Fees,PIN051715,18000,
FCDO,CSC,12/03/2021,Tuition Fee,Award costs,University of Strathclyde,PIN051716,16720,
FCDO,CSC,12/03/2021,Tuition Fee,Award costs,Brunel University,PIN051717,14460,
FCDO,CSC,12/03/2021,Tuition Fee,Award costs,Universty of Westminster,PIN051718,10400,
FCDO,CSC,12/03/2021,Tuition Fee,Award costs,The University of Edinburgh,PIN051719,21880,
FCDO,CSC,12/03/2021,Tuition Fee,Award costs,The University of Edinburgh,PIN051720,49635,
FCDO,CSC,12/03/2021,Tuition Fee,Award costs,University College London Fees,PIN051721,21010,
FCDO,CSC,12/03/2021,Tuition Fee,Award costs,University College London Fees,PIN051722,13274.14,
FCDO,CSC,12/03/2021,Tuition Fee,Award costs,University of Strathclyde,PIN051723,16720,
FCDO,CSC,12/03/2021,Scholar Travel,Award costs,University of Glasgow,PIN051724,534.3,
FCDO,CSC,12/03/2021,Tuition Fee,Award costs,The University of Edinburgh,PIN051725,16080,
FCDO,CSC,12/03/2021,Scholar Allowances,Award costs,BISHOP GROSSETESTE UNIVERSITY,PIN051726,300,
FCDO,CSC,12/03/2021,Scholar Travel,Award costs,BISHOP GROSSETESTE UNIVERSITY,PIN051726,724.77,
FCDO,CSC,12/03/2021,Scholar Allowances,Award costs,University of Glasgow,PIN051727,1800,
FCDO,CSC,12/03/2021,Scholar Allowances,Award costs,University of Glasgow,PIN051728,1400,
FCDO,CSC,12/03/2021,Tuition Fee,Award costs,University of Lincoln,PIN051729,12880,
FCDO,CSC,12/03/2021,Award Support Costs,Award costs,University of Bradford,PIN051730,5000,
FCDO,CSC,12/03/2021,Scholar Travel,Award costs,Diversity Travel,PIN051732,430.7,
FCDO,CSC,12/03/2021,Scholar Engagement,Programme Costs,Diversity Travel,PIN051732,325.11,
FCDO,CSC,12/03/2021,Scholar Travel,Award costs,Diversity Travel,PIN051732,89,
FCDO,CSC,12/03/2021,Scholar Travel,Award costs,Diversity Travel,PIN051732,64.97,
FCDO,CSC,12/03/2021,Scholar Travel,Award costs,Diversity Travel,PIN051732,677.08,
FCDO,CSC,12/03/2021,Scholar Travel,Award costs,Diversity Travel,PIN051732,518.37,
FCDO,CSC,12/03/2021,Scholar Travel,Award costs,Diversity Travel,PIN051732,-930.17,
FCDO,CSC,11/03/2021,Scholar Allowances,Award costs,Scholar,PIN051734,476,
FCDO,CSC,11/03/2021,Scholar Allowances,Award costs,Scholar,PIN051734,240,
FCDO,CSC,11/03/2021,Scholar Stipend,Award costs,Scholar,PIN051734,1116,
FCDO,CSC,09/03/2021,Scholar Allowances,Award costs,Scholar,PIN051735,958.22,
FCDO,CSC,09/03/2021,Start-up Allowance,Award costs,Scholar,PIN051735,150,
FCDO,CSC,09/03/2021,Start-up Allowance,Award costs,Scholar,PIN051735,150,
FCDO,CSC,09/03/2021,Start-up Allowance,Award costs,Scholar,PIN051735,150,
FCDO,CSC,09/03/2021,Start-up Allowance,Award costs,Scholar,PIN051735,150,
FCDO,CSC,09/03/2021,Start-up Allowance,Award costs,Scholar,PIN051735,150,
FCDO,CSC,09/03/2021,Start-up Allowance,Award costs,Scholar,PIN051735,150,
FCDO,CSC,09/03/2021,Start-up Allowance,Award costs,Scholar,PIN051735,150,
FCDO,CSC,09/03/2021,Start-up Allowance,Award costs,Scholar,PIN051735,150,
FCDO,CSC,09/03/2021,Start-up Allowance,Award costs,Scholar,PIN051735,150,
FCDO,CSC,09/03/2021,Start-up Allowance,Award costs,Scholar,PIN051735,150,
FCDO,CSC,09/03/2021,Start-up Allowance,Award costs,Scholar,PIN051735,150,
FCDO,CSC,09/03/2021,Start-up Allowance,Award costs,Scholar,PIN051735,150,
FCDO,CSC,09/03/2021,Scholar Stipend,Award costs,Scholar,PIN051735,1567.54,
FCDO,CSC,09/03/2021,Scholar Stipend,Award costs,Scholar,PIN051735,962.28,
FCDO,CSC,09/03/2021,Scholar Stipend,Award costs,Scholar,PIN051735,481.14,
FCDO,CSC,09/03/2021,Scholar Stipend,Award costs,Scholar,PIN051735,1294.23,
FCDO,CSC,09/03/2021,Scholar Stipend,Award costs,Scholar,PIN051735,962.28,
FCDO,CSC,09/03/2021,Scholar Stipend,Award costs,Scholar,PIN051735,1294.23,
FCDO,CSC,09/03/2021,Scholar Stipend,Award costs,Scholar,PIN051735,1120.35,
FCDO,CSC,09/03/2021,Scholar Stipend,Award costs,Scholar,PIN051735,2934.25,
FCDO,CSC,09/03/2021,Scholar Stipend,Award costs,Scholar,PIN051735,962.28,
FCDO,CSC,09/03/2021,Scholar Stipend,Award costs,Scholar,PIN051735,1072.93,
FCDO,CSC,09/03/2021,Scholar Stipend,Award costs,Scholar,PIN051735,1294.23,
FCDO,CSC,09/03/2021,Scholar Stipend,Award costs,Scholar,PIN051735,1443.72,
FCDO,CSC,09/03/2021,Scholar Stipend,Award costs,Scholar,PIN051735,2934.25,
FCDO,CSC,09/03/2021,Bank Charges,Programme Costs,MasterCard Prepaid Management Services Ltd,PIN051735,210.8,
FCDO,CSC,10/03/2021,Scholar Allowances,Award costs,Scholar,PIN051736,958.22,
FCDO,CSC,10/03/2021,Start-up Allowance,Award costs,Scholar,PIN051736,150,
FCDO,CSC,10/03/2021,Start-up Allowance,Award costs,Scholar,PIN051736,150,
FCDO,CSC,10/03/2021,Start-up Allowance,Award costs,Scholar,PIN051736,150,
FCDO,CSC,10/03/2021,Start-up Allowance,Award costs,Scholar,PIN051736,150,
FCDO,CSC,10/03/2021,Start-up Allowance,Award costs,Scholar,PIN051736,150,
FCDO,CSC,10/03/2021,Start-up Allowance,Award costs,Scholar,PIN051736,150,
FCDO,CSC,10/03/2021,Scholar Stipend,Award costs,Scholar,PIN051736,1343.61,
FCDO,CSC,10/03/2021,Scholar Stipend,Award costs,Scholar,PIN051736,1183.58,
FCDO,CSC,10/03/2021,Scholar Stipend,Award costs,Scholar,PIN051736,1389.08,
FCDO,CSC,10/03/2021,Scholar Stipend,Award costs,Scholar,PIN051736,1294.23,
FCDO,CSC,10/03/2021,Scholar Stipend,Award costs,Scholar,PIN051736,1278.42,
FCDO,CSC,10/03/2021,Scholar Stipend,Award costs,Scholar,PIN051736,1404.88,
FCDO,CSC,10/03/2021,Scholar Stipend,Award costs,Scholar,PIN051736,1183.58,
FCDO,CSC,10/03/2021,Bank Charges,Programme Costs,MasterCard Prepaid Management Services Ltd,PIN051736,109.36,
FCDO,CSC,16/03/2021,Scholar Stipend,Award costs,Scholar,PIN051738,1875.65,
FCDO,CSC,16/03/2021,Scholar Stipend,Award costs,Scholar,PIN051739,2798.02,
FCDO,CSC,16/03/2021,Scholar Allowances,Award costs,Scholar,PIN051741,257.06,
FCDO,CSC,16/03/2021,Scholar Stipend,Award costs,Scholar,PIN051741,599.45,
FCDO,CSC,16/03/2021,Scholar Stipend,Award costs,Scholar,PIN051743,1752.36,
FCDO,CSC,16/03/2021,Scholar Stipend,Award costs,Scholar,PIN051744,1225.99,
FCDO,CSC,16/03/2021,Scholar Allowances,Award costs,Scholar,PIN051746,250,
FCDO,CSC,16/03/2021,Scholar Stipend,Award costs,Scholar,PIN051746,1674,
FCDO,CSC,16/03/2021,Scholar Stipend,Award costs,Scholar,PIN051747,1152.66,
FCDO,CSC,19/03/2021,Immigration Health Surcharge,Award costs,Scholar,PIN051748,705,
FCDO,CSC,19/03/2021,Visa Costs,Award costs,Scholar,PIN051748,494.2,
FCDO,CSC,19/03/2021,Tuition Fee,Award costs,University of Aberdeen,PIN051749,11200,
FCDO,CSC,19/03/2021,Tuition Fee,Award costs,University of Aberdeen,PIN051750,8800,
FCDO,CSC,19/03/2021,Tuition Fee,Award costs,University of Aberdeen,PIN051751,8800,
FCDO,CSC,19/03/2021,Tuition Fee,Award costs,University of Stirling,PIN051752,3600,
FCDO,CSC,19/03/2021,Tuition Fee,Award costs,University of Stirling,PIN051753,3600,
FCDO,CSC,19/03/2021,Tuition Fee,Award costs,University of Stirling,PIN051754,3750,
FCDO,CSC,19/03/2021,Tuition Fee,Award costs,University of Stirling,PIN051755,3750,
FCDO,CSC,19/03/2021,Tuition Fee,Award costs,University of Stirling,PIN051756,3450,
FCDO,CSC,19/03/2021,Tuition Fee,Award costs,University of Stirling,PIN051757,3450,
FCDO,CSC,19/03/2021,Tuition Fee,Award costs,University of Stirling,PIN051758,3750,
FCDO,CSC,19/03/2021,Tuition Fee,Award costs,University of Stirling,PIN051759,3750,
FCDO,CSC,19/03/2021,Tuition Fee,Award costs,University of Stirling,PIN051760,3750,
FCDO,CSC,19/03/2021,Tuition Fee,Award costs,University of Stirling,PIN051761,3600,
FCDO,CSC,19/03/2021,Tuition Fee,Award costs,University of Stirling,PIN051762,3600,
FCDO,CSC,19/03/2021,Tuition Fee,Award costs,University of Stirling,PIN051763,3450,
FCDO,CSC,19/03/2021,Tuition Fee,Award costs,University of Stirling,PIN051764,3450,
FCDO,CSC,19/03/2021,Tuition Fee,Award costs,University of Stirling,PIN051766,3600,
FCDO,CSC,19/03/2021,Tuition Fee,Award costs,University of Stirling,PIN051768,3750,
FCDO,CSC,19/03/2021,Tuition Fee,Award costs,University of Stirling,PIN051769,3750,
FCDO,CSC,19/03/2021,Tuition Fee,Award costs,University of Stirling,PIN051770,3750,
FCDO,CSC,19/03/2021,Tuition Fee,Award costs,University of Stirling,PIN051771,3600,
FCDO,CSC,19/03/2021,Tuition Fee,Award costs,University of Stirling,PIN051772,3750,
FCDO,CSC,19/03/2021,Tuition Fee,Award costs,University of Stirling,PIN051773,3750,
FCDO,CSC,19/03/2021,Tuition Fee,Award costs,University of Stirling,PIN051774,3450,
FCDO,CSC,19/03/2021,Tuition Fee,Award costs,The University of Birmingham,PIN051775,63450,
FCDO,CSC,19/03/2021,Tuition Fee,Award costs,University of Stirling,PIN051776,3750,
FCDO,CSC,19/03/2021,Tuition Fee,Award costs,University of Leicester,PIN051777,11495,
FCDO,CSC,19/03/2021,Tuition Fee,Award costs,University of Leicester,PIN051778,11495,
FCDO,CSC,19/03/2021,Tuition Fee,Award costs,University of Leicester,PIN051779,11495,
FCDO,CSC,19/03/2021,Tuition Fee,Award costs,University of Leicester,PIN051780,11495,
FCDO,CSC,19/03/2021,Tuition Fee,Award costs,University of Leicester,PIN051781,11495,
FCDO,CSC,19/03/2021,Tuition Fee,Award costs,University of Leicester,PIN051782,10345.5,
FCDO,CSC,19/03/2021,Tuition Fee,Award costs,University of Leicester,PIN051783,11495,
FCDO,CSC,19/03/2021,Immigration Health Surcharge,Award costs,Scholar,PIN051784,235,
FCDO,CSC,19/03/2021,Visa Costs,Award costs,Scholar,PIN051784,494.2,
FCDO,CSC,19/03/2021,Scholar Travel,Award costs,Brunel University,PIN051785,642.25,
FCDO,CSC,19/03/2021,Tuition Fee,Award costs,The University of Birmingham,PIN051786,104400,
FCDO,CSC,19/03/2021,Tuition Fee,Award costs,Queens University Belfast,PIN051787,9458.58,
FCDO,CSC,19/03/2021,Tuition Fee,Award costs,Queens University Belfast,PIN051788,16900,
FCDO,CSC,19/03/2021,Tuition Fee,Award costs,Queens University Belfast,PIN051789,16900,
FCDO,CSC,19/03/2021,Tuition Fee,Award costs,Queens University Belfast,PIN051790,20800,
FCDO,CSC,19/03/2021,Tuition Fee,Award costs,Queens University Belfast,PIN051791,13196,
FCDO,CSC,19/03/2021,Tuition Fee,Award costs,Queens University Belfast,PIN051792,13300.8,
FCDO,CSC,19/03/2021,Award Support Costs,Award costs,University of Reading,PIN051793,1250,
FCDO,CSC,19/03/2021,Award Support Costs,Award costs,University of Reading,PIN051794,1000,
FCDO,CSC,19/03/2021,Tuition Fee,Award costs,University of Reading,PIN051794,13512,
FCDO,CSC,19/03/2021,Tuition Fee,Award costs,University of Reading,PIN051795,13512,
FCDO,CSC,19/03/2021,Tuition Fee,Award costs,London School of Economics,PIN051796,112500,
FCDO,CSC,19/03/2021,Tuition Fee,Award costs,Bangor University,PIN051797,36288,
FCDO,CSC,19/03/2021,Tuition Fee,Award costs,University of Glasgow,PIN051798,14400,
FCDO,CSC,19/03/2021,Tuition Fee,Award costs,University of Glasgow,PIN051799,18000,
FCDO,CSC,19/03/2021,Tuition Fee,Award costs,University of Glasgow,PIN051800,17536,
FCDO,CSC,19/03/2021,Tuition Fee,Award costs,University of Glasgow,PIN051801,11690.66,
FCDO,CSC,19/03/2021,Tuition Fee,Award costs,University of Glasgow,PIN051802,13152,
FCDO,CSC,19/03/2021,Tuition Fee,Award costs,University of Glasgow,PIN051803,13152,
FCDO,CSC,19/03/2021,Tuition Fee,Award costs,University of Glasgow,PIN051804,14613.33,
FCDO,CSC,19/03/2021,Tuition Fee,Award costs,University of Glasgow,PIN051805,13152,
FCDO,CSC,19/03/2021,Tuition Fee,Award costs,Bangor University,PIN051806,5010,
FCDO,CSC,19/03/2021,Tuition Fee,Award costs,Bangor University,PIN051807,6600,
FCDO,CSC,19/03/2021,Tuition Fee,Award costs,Bangor University,PIN051808,-1590,
FCDO,CSC,19/03/2021,Tuition Fee,Award costs,Bangor University,PIN051809,14697,
FCDO,CSC,26/03/2021,Tuition Fee,Award costs,Bangor University,PIN051810,3670,
FCDO,CSC,26/03/2021,Tuition Fee,Award costs,Bangor University,PIN051811,4521,
FCDO,CSC,19/03/2021,Tuition Fee,Award costs,Bangor University,PIN051812,2941.2,
FCDO,CSC,19/03/2021,Tuition Fee,Award costs,Bangor University,PIN051813,8534.4,
FCDO,CSC,19/03/2021,Tuition Fee,Award costs,Bangor University,PIN051814,4267.2,
FCDO,CSC,19/03/2021,Tuition Fee,Award costs,The University of Birmingham,PIN051815,10548,
FCDO,CSC,19/03/2021,Tuition Fee,Award costs,The University of Birmingham,PIN051816,10548,
FCDO,CSC,19/03/2021,Award Support Costs,Award costs,The University of Birmingham,PIN051817,1500,
FCDO,CSC,19/03/2021,Award Support Costs,Award costs,The University of Birmingham,PIN051818,1500,
FCDO,CSC,19/03/2021,Tuition Fee,Award costs,The University of Warwick,PIN051819,22500,
FCDO,CSC,19/03/2021,Tuition Fee,Award costs,University of Leicester,PIN051820,13460,
FCDO,CSC,19/03/2021,Tuition Fee,Award costs,University of Bradford,PIN051821,13472,
FCDO,CSC,19/03/2021,Alumni network welcome,Programme Costs,TFW Printers,PIN051822,3276,
FCDO,CSC,19/03/2021,Alumni network welcome,Programme Costs,TFW Printers,PIN051823,582,
FCDO,CSC,19/03/2021,Tuition Fee,Award costs,Aston University,PIN051824,15120,
FCDO,CSC,19/03/2021,Scholar Allowances,Award costs,Univ of Central Lancashire,PIN051825,155,
FCDO,CSC,19/03/2021,Scholar Travel,Award costs,Univ of Central Lancashire,PIN051825,35.2,
FCDO,CSC,19/03/2021,Scholar Travel,Award costs,Univ of Central Lancashire,PIN051825,1105.18,
FCDO,CSC,19/03/2021,Scholar Travel,Award costs,Univ of Central Lancashire,PIN051826,1702.8,
FCDO,CSC,19/03/2021,Scholar Allowances,Award costs,University College London,PIN051827,2250,
FCDO,CSC,19/03/2021,Scholar Allowances,Award costs,University College London,PIN051827,2000,
FCDO,CSC,19/03/2021,Visa Costs,Award costs,University College London,PIN051827,719.48,
FCDO,CSC,19/03/2021,Scholar Travel,Award costs,University College London,PIN051827,5211.9,
FCDO,CSC,19/03/2021,Scholar Engagement,Programme Costs,International Network for Advancing Science&P,PIN051828,5005.72,
FCDO,CSC,19/03/2021,Scholar Engagement,Programme Costs,International Network for Advancing Science&P,PIN051829,5389.71,
FCDO,CSC,19/03/2021,Scholar Engagement,Programme Costs,Juan Casasbuenas,PIN051830,900,
FCDO,CSC,19/03/2021,Start-up Allowance,Award costs,Scholar,PIN051831,150,
FCDO,CSC,19/03/2021,Start-up Allowance,Award costs,Scholar,PIN051831,150,
FCDO,CSC,19/03/2021,Start-up Allowance,Award costs,Scholar,PIN051831,150,
FCDO,CSC,19/03/2021,Start-up Allowance,Award costs,Scholar,PIN051831,150,
FCDO,CSC,19/03/2021,Start-up Allowance,Award costs,Scholar,PIN051831,150,
FCDO,CSC,19/03/2021,Start-up Allowance,Award costs,Scholar,PIN051831,150,
FCDO,CSC,19/03/2021,Start-up Allowance,Award costs,Scholar,PIN051831,150,
FCDO,CSC,19/03/2021,Scholar Stipend,Award costs,Scholar,PIN051831,702.44,
FCDO,CSC,19/03/2021,Scholar Stipend,Award costs,Scholar,PIN051831,962.28,
FCDO,CSC,19/03/2021,Scholar Stipend,Award costs,Scholar,PIN051831,1874.9,
FCDO,CSC,19/03/2021,Scholar Stipend,Award costs,Scholar,PIN051831,1341.65,
FCDO,CSC,19/03/2021,Scholar Stipend,Award costs,Scholar,PIN051831,1278.42,
FCDO,CSC,19/03/2021,Scholar Stipend,Award costs,Scholar,PIN051831,1389.08,
FCDO,CSC,19/03/2021,Scholar Stipend,Award costs,Scholar,PIN051831,1294.24,
FCDO,CSC,19/03/2021,Bank Charges,Programme Costs,MasterCard Prepaid Management Services Ltd,PIN051831,98.92,
FCDO,CSC,23/03/2021,Scholar Allowances,Award costs,Scholar,PIN051832,275,
FCDO,CSC,23/03/2021,Scholar Stipend,Award costs,Scholar,PIN051832,989.96,
FCDO,CSC,23/03/2021,Scholar Allowances,Award costs,Scholar,PIN051833,275,
FCDO,CSC,23/03/2021,Scholar Stipend,Award costs,Scholar,PIN051833,1026.62,
FCDO,CSC,26/03/2021,Award Support Costs,Award costs,The University of Birmingham,PIN051834,5000,
FCDO,CSC,26/03/2021,Award Support Costs,Award costs,Imperial College London,PIN051835,500,
FCDO,CSC,26/03/2021,Award Support Costs,Award costs,Imperial College London,PIN051835,3500,
FCDO,CSC,26/03/2021,Award Support Costs,Award costs,Imperial College London,PIN051835,5000,
FCDO,CSC,26/03/2021,Tuition Fee,Award costs,Imperial College London,PIN051835,18000,
FCDO,CSC,26/03/2021,Tuition Fee,Award costs,Imperial College London,PIN051835,18000,
FCDO,CSC,26/03/2021,Tuition Fee,Award costs,Imperial College London,PIN051835,18000,
FCDO,CSC,26/03/2021,Tuition Fee,Award costs,Imperial College London,PIN051835,18000,
FCDO,CSC,26/03/2021,Tuition Fee,Award costs,Imperial College London,PIN051835,18000,
FCDO,CSC,26/03/2021,Tuition Fee,Award costs,Imperial College London,PIN051835,18000,
FCDO,CSC,26/03/2021,Tuition Fee,Award costs,Imperial College London,PIN051835,18000,
FCDO,CSC,26/03/2021,Tuition Fee,Award costs,Imperial College London,PIN051835,18000,
DFE,CSC,26/03/2021,Scholar Allowances,Award costs,University of Oxford,PIN051836,600,
DFE,CSC,26/03/2021,Scholar Allowances,Award costs,University of Oxford,PIN051836,170,
DFE,CSC,26/03/2021,Scholar Allowances,Award costs,University of Oxford,PIN051836,50,
DFE,CSC,26/03/2021,Scholar Allowances,Award costs,University of Oxford,PIN051836,50,
DFE,CSC,26/03/2021,Scholar Stipend,Award costs,University of Oxford,PIN051836,8928,
DFE,CSC,26/03/2021,Scholar Stipend,Award costs,University of Oxford,PIN051836,13392,
DFE,CSC,26/03/2021,Scholar Stipend,Award costs,University of Oxford,PIN051836,13392,
DFE,CSC,26/03/2021,Tuition Fee,Award costs,University of Oxford,PIN051836,16606,
DFE,CSC,26/03/2021,Tuition Fee,Award costs,University of Oxford,PIN051836,24910,
DFE,CSC,26/03/2021,Tuition Fee,Award costs,University of Oxford,PIN051836,24910,
FCDO,CSC,26/03/2021,Award Support Costs,Award costs,Imperial College London,PIN051837,-1500,
FCDO,CSC,26/03/2021,Scholar Allowances,Award costs,University of Reading,PIN051838,200,
FCDO,CSC,26/03/2021,Scholar Travel,Award costs,University of Reading,PIN051838,414.69,
FCDO,CSC,26/03/2021,Award Support Costs,Award costs,Kings College London,PIN051839,5000,
DFE,CSC,26/03/2021,Tuition Fee,Award costs,New College Oxford,PIN051840,12000,
FCDO,CSC,26/03/2021,Tuition Fee,Award costs,University of Exeter,PIN051841,21100,
FCDO,CSC,26/03/2021,Tuition Fee,Award costs,University of Sussex,PIN051842,14800,
FCDO,CSC,26/03/2021,Tuition Fee,Award costs,University of Exeter,PIN051843,19100,
FCDO,CSC,26/03/2021,Tuition Fee,Award costs,University of Exeter,PIN051844,14360,
FCDO,CSC,26/03/2021,Tuition Fee,Award costs,London School of Economics,PIN051845,18000,
FCDO,CSC,26/03/2021,Tuition Fee,Award costs,London School of Economics,PIN051846,18000,
FCDO,CSC,26/03/2021,Tuition Fee,Award costs,University of Stirling,PIN051847,15250,
FCDO,CSC,26/03/2021,Tuition Fee,Award costs,University of Stirling,PIN051848,16040,
FCDO,CSC,26/03/2021,Tuition Fee,Award costs,University of Stirling,PIN051849,16040,
FCDO,CSC,26/03/2021,Tuition Fee,Award costs,University of Stirling,PIN051850,16040,
FCDO,CSC,26/03/2021,Tuition Fee,Award costs,London School of Economics,PIN051851,18000,
FCDO,CSC,26/03/2021,Tuition Fee,Award costs,University of Portsmouth,PIN051852,13120,
FCDO,CSC,26/03/2021,Award Support Costs,Award costs,Cranfield University,PIN051853,5000,
FCDO,CSC,26/03/2021,Tuition Fee,Award costs,Cranfield University,PIN051854,15096,
FCDO,CSC,26/03/2021,Tuition Fee,Award costs,University of Portsmouth,PIN051855,11440,
FCDO,CSC,26/03/2021,Award Support Costs,Award costs,Lond Sch Hygiene & Tropical Me,PIN051856,5000,
FCDO,CSC,26/03/2021,Award Support Costs,Award costs,Lond Sch Hygiene & Tropical Me,PIN051857,12750,
FCDO,CSC,26/03/2021,Tuition Fee,Award costs,Lond Sch Hygiene & Tropical Me,PIN051858,31300,
FCDO,CSC,26/03/2021,Tuition Fee,Award costs,The University of Birmingham,PIN051859,18000,
FCDO,CSC,26/03/2021,Tuition Fee,Award costs,The University of Birmingham,PIN051860,12892,
FCDO,CSC,26/03/2021,Award Support Costs,Award costs,Lond Sch Hygiene & Tropical Me,PIN051861,5000,
FCDO,CSC,26/03/2021,Tuition Fee,Award costs,University of Glasgow,PIN051862,22500,
FCDO,CSC,26/03/2021,Tuition Fee,Award costs,University of Glasgow,PIN051863,11690.66,
FCDO,CSC,26/03/2021,Tuition Fee,Award costs,The University of Birmingham,PIN051864,13500,
FCDO,CSC,26/03/2021,Tuition Fee,Award costs,The University of Birmingham,PIN051865,-3000,
FCDO,CSC,26/03/2021,Tuition Fee,Award costs,Cranfield University,PIN051867,18000,
FCDO,CSC,26/03/2021,Award Support Costs,Award costs,The University of Leeds,PIN051868,6600,
FCDO,CSC,26/03/2021,Tuition Fee,Award costs,The University of Leeds,PIN051869,18000,
FCDO,CSC,26/03/2021,Visa Costs,Award costs,Lond Sch Hygiene & Tropical Me,PIN051870,111.14,
FCDO,CSC,26/03/2021,Scholar Allowances,Award costs,Lond Sch Hygiene & Tropical Me,PIN051870,225,
FCDO,CSC,26/03/2021,Scholar Allowances,Award costs,Lond Sch Hygiene & Tropical Me,PIN051870,200,
FCDO,CSC,26/03/2021,Scholar Travel,Award costs,Lond Sch Hygiene & Tropical Me,PIN051870,520.1,
FCDO,CSC,26/03/2021,Tuition Fee,Award costs,Lond Sch Hygiene & Tropical Me,PIN051870,22500,
FCDO,CSC,26/03/2021,Award Support Costs,Award costs,University of Aberdeen,PIN051871,5000,
FCDO,CSC,26/03/2021,Tuition Fee,Award costs,University of Durham,PIN051872,16200,
FCDO,CSC,26/03/2021,Tuition Fee,Award costs,University of Durham,PIN051872,18000,
DFE,CSC,26/03/2021,Award Support Costs,Award costs,The University of Leeds,PIN051873,2250,
DFE,CSC,26/03/2021,Tuition Fee,Award costs,The University of Leeds,PIN051873,21750,
DFE,CSC,26/03/2021,Tuition Fee,Award costs,The University of Leeds,PIN051873,19500,
DFE,CSC,26/03/2021,Scholar Stipend,Award costs,The University of Leeds,PIN051874,13392,
DFE,CSC,26/03/2021,Scholar Stipend,Award costs,The University of Leeds,PIN051874,13392,
FCDO,CSC,26/03/2021,Visa Costs,Award costs,Lond Sch Hygiene & Tropical Me,PIN051876,62.98,
FCDO,CSC,26/03/2021,Scholar Allowances,Award costs,Lond Sch Hygiene & Tropical Me,PIN051876,225,
FCDO,CSC,26/03/2021,Scholar Allowances,Award costs,Lond Sch Hygiene & Tropical Me,PIN051876,200,
FCDO,CSC,26/03/2021,Scholar Travel,Award costs,Lond Sch Hygiene & Tropical Me,PIN051876,499.48,
FCDO,CSC,26/03/2021,Tuition Fee,Award costs,Lond Sch Hygiene & Tropical Me,PIN051876,22500,
FCDO,CSC,26/03/2021,Award Support Costs,Award costs,University of Leicester,PIN051877,4200,
FCDO,CSC,26/03/2021,Tuition Fee,Award costs,University of Reading,PIN051878,8162.4,
FCDO,CSC,26/03/2021,Award Support Costs,Award costs,University of Reading,PIN051878,6000,
FCDO,CSC,26/03/2021,Tuition Fee,Award costs,University of Southampton,PIN051879,18000,
FCDO,CSC,26/03/2021,Tuition Fee,Award costs,University of the West of England Bristol,PIN051880,13750,
FCDO,CSC,26/03/2021,Scholar Travel,Award costs,Sheffield Hallam Univ,PIN051881,866.14,
FCDO,CSC,26/03/2021,Award Support Costs,Award costs,Lond Sch Hygiene & Tropical Me,PIN051882,4900,
FCDO,CSC,26/03/2021,Award Support Costs,Award costs,Queens University Belfast,PIN051883,1200,
FCDO,CSC,26/03/2021,Award Support Costs,Award costs,University of Newcastle upon Tyne,PIN051884,5000,
FCDO,CSC,26/03/2021,Scholar Allowances,Award costs,Imperial College London,PIN051885,900,
FCDO,CSC,26/03/2021,Scholar Travel,Award costs,Imperial College London,PIN051885,1214.33,
FCDO,CSC,26/03/2021,Scholar Allowances,Award costs,Imperial College London,PIN051885,750,
FCDO,CSC,26/03/2021,Visa Costs,Award costs,Imperial College London,PIN051885,117,
FCDO,CSC,26/03/2021,Scholar Travel,Award costs,Imperial College London,PIN051885,630.75,
FCDO,CSC,26/03/2021,Tuition Fee,Award costs,Imperial College London,PIN051885,22500,
FCDO,CSC,26/03/2021,Tuition Fee,Award costs,The Cambridge Commonwealth Trust,PIN051886,18000,
FCDO,CSC,26/03/2021,Visa Costs,Award costs,Sheffield Hallam Univ,PIN051887,115.67,
FCDO,CSC,26/03/2021,Scholar Travel,Award costs,Sheffield Hallam Univ,PIN051887,113.6,
FCDO,CSC,26/03/2021,Scholar Travel,Award costs,Sheffield Hallam Univ,PIN051887,324.3,
FCDO,CSC,26/03/2021,Tuition Fee,Award costs,Sheffield Hallam Univ,PIN051887,13905,
FCDO,CSC,26/03/2021,Tuition Fee,Award costs,University of Sheffield,PIN051888,18000,
FCDO,CSC,26/03/2021,Tuition Fee,Award costs,University of Sheffield,PIN051889,18000,
FCDO,CSC,26/03/2021,Tuition Fee,Award costs,University of Sheffield,PIN051890,18000,
FCDO,CSC,26/03/2021,Tuition Fee,Award costs,University of Sheffield,PIN051891,16640,
FCDO,CSC,26/03/2021,Tuition Fee,Award costs,The University of Edinburgh,PIN051892,28150,
FCDO,CSC,26/03/2021,Tuition Fee,Award costs,The University of Edinburgh,PIN051892,166070,
FCDO,CSC,26/03/2021,Tuition Fee,Award costs,The University of Edinburgh,PIN051893,11880,
FCDO,CSC,26/03/2021,Tuition Fee,Award costs,The University of Edinburgh,PIN051894,1730,
FCDO,CSC,26/03/2021,Tuition Fee,Award costs,The University of Edinburgh,PIN051895,6905,
FCDO,CSC,26/03/2021,Tuition Fee,Award costs,University of Dundee,PIN051896,3030,
FCDO,CSC,26/03/2021,Tuition Fee,Award costs,University of Dundee,PIN051897,3030,
FCDO,CSC,26/03/2021,Tuition Fee,Award costs,University of Dundee,PIN051898,3030,
FCDO,CSC,26/03/2021,Tuition Fee,Award costs,University of Dundee,PIN051899,3030,
FCDO,CSC,26/03/2021,Tuition Fee,Award costs,University of Dundee,PIN051900,3030,
FCDO,CSC,26/03/2021,Tuition Fee,Award costs,University of Dundee,PIN051901,3030,
FCDO,CSC,26/03/2021,Tuition Fee,Award costs,University of Dundee,PIN051902,3030,
FCDO,CSC,26/03/2021,Tuition Fee,Award costs,University of Dundee,PIN051903,3030,
FCDO,CSC,26/03/2021,Tuition Fee,Award costs,University of Dundee,PIN051904,3030,
FCDO,CSC,26/03/2021,Tuition Fee,Award costs,University of Dundee,PIN051905,3030,
FCDO,CSC,26/03/2021,Scholar Travel,Award costs,Scholar,PIN051906,815.57,
FCDO,CSC,26/03/2021,Tuition Fee,Award costs,University of Dundee,PIN051907,3030,
FCDO,CSC,26/03/2021,Tuition Fee,Award costs,University of Dundee,PIN051908,3030,
FCDO,CSC,26/03/2021,Tuition Fee,Award costs,University of Dundee,PIN051909,3030,
FCDO,CSC,26/03/2021,Tuition Fee,Award costs,University of Dundee,PIN051910,3030,
FCDO,CSC,26/03/2021,Tuition Fee,Award costs,University of Bath,PIN051911,5560,
FCDO,CSC,26/03/2021,Tuition Fee,Award costs,University of Bath,PIN051912,5560,
FCDO,CSC,26/03/2021,Tuition Fee,Award costs,University of Bath,PIN051913,5560,
FCDO,CSC,26/03/2021,Tuition Fee,Award costs,University of Bath,PIN051914,5560,
FCDO,CSC,26/03/2021,Tuition Fee,Award costs,University of Bath,PIN051915,5560,
FCDO,CSC,26/03/2021,Award Support Costs,Award costs,University of Greenwich,PIN051916,4000,
FCDO,CSC,26/03/2021,Tuition Fee,Award costs,University of the West of England Bristol,PIN051917,10400,
FCDO,CSC,26/03/2021,Award Support Costs,Award costs,University of the West of England Bristol,PIN051918,11825,
FCDO,CSC,26/03/2021,Award Support Costs,Award costs,University of the West of England Bristol,PIN051919,11570,
FCDO,CSC,26/03/2021,Tuition Fee,Award costs,The University of Nottingham,PIN051920,14040,
FCDO,CSC,26/03/2021,Fieldwork Airfare,Award costs,Scholar,PIN051921,596.89,
FCDO,CSC,26/03/2021,Tuition Fee,Award costs,The University of Nottingham,PIN051922,29400,
FCDO,CSC,26/03/2021,Tuition Fee,Award costs,The University of Nottingham,PIN051923,9504,
FCDO,CSC,26/03/2021,Award Support Costs,Award costs,Univ of Central Lancashire,PIN051924,8000,
FCDO,CSC,26/03/2021,Tuition Fee,Award costs,Univ of Central Lancashire,PIN051924,12160,
FCDO,CSC,26/03/2021,Tuition Fee,Award costs,University of Strathclyde,PIN051925,16040,
FCDO,CSC,26/03/2021,Tuition Fee,Award costs,The University of Nottingham,PIN051926,7368,
FCDO,CSC,26/03/2021,Tuition Fee,Award costs,University of Oxford,PIN051927,8568,
FCDO,CSC,26/03/2021,Award Support Costs,Award costs,The University of Birmingham,PIN051928,2500,
FCDO,CSC,26/03/2021,Scholar Allowances,Award costs,Scholar,PIN051929,600,
FCDO,CSC,26/03/2021,Award Support Costs,Award costs,BHAM WOMENS & CHILDRENS NHS FT,PIN051930,2000,
FCDO,CSC,26/03/2021,Tuition Fee,Award costs,University of St  Andrews,PIN051931,13240,
FCDO,CSC,26/03/2021,Award Support Costs,Award costs,The University of Birmingham,PIN051932,5000,
FCDO,CSC,26/03/2021,Tuition Fee,Award costs,University of Greenwich,PIN051933,6533.34,
FCDO,CSC,26/03/2021,Tuition Fee,Award costs,The University of Edinburgh,PIN051934,4900,
FCDO,CSC,26/03/2021,Tuition Fee,Award costs,The University of Edinburgh,PIN051935,865,
FCDO,CSC,26/03/2021,Tuition Fee,Award costs,The University of Edinburgh,PIN051936,1725,
FCDO,CSC,26/03/2021,Tuition Fee,Award costs,The University of Edinburgh,PIN051937,2590,
FCDO,CSC,26/03/2021,Tuition Fee,Award costs,The University of Edinburgh,PIN051938,1725,
FCDO,CSC,26/03/2021,Tuition Fee,Award costs,The University of Edinburgh,PIN051939,1725,
FCDO,CSC,26/03/2021,Tuition Fee,Award costs,The University of Edinburgh,PIN051940,1725,
FCDO,CSC,26/03/2021,Tuition Fee,Award costs,The University of Edinburgh,PIN051941,915,
FCDO,CSC,26/03/2021,Tuition Fee,Award costs,The University of Edinburgh,PIN051942,5470,
FCDO,CSC,26/03/2021,Tuition Fee,Award costs,The University of Edinburgh,PIN051943,5470,
FCDO,CSC,26/03/2021,Tuition Fee,Award costs,The University of Edinburgh,PIN051944,2590,
FCDO,CSC,26/03/2021,Tuition Fee,Award costs,The University of Edinburgh,PIN051945,1825,
FCDO,CSC,26/03/2021,Tuition Fee,Award costs,The University of Edinburgh,PIN051946,3650,
FCDO,CSC,26/03/2021,Tuition Fee,Award costs,The University of Edinburgh,PIN051947,3650,
FCDO,CSC,26/03/2021,Tuition Fee,Award costs,The University of Edinburgh,PIN051948,2590,
FCDO,CSC,26/03/2021,Tuition Fee,Award costs,The University of Edinburgh,PIN051949,865,
FCDO,CSC,26/03/2021,Tuition Fee,Award costs,Bangor University,PIN051950,12801.6,
FCDO,CSC,26/03/2021,Tuition Fee,Award costs,Bangor University,PIN051951,8534.4,
FCDO,CSC,26/03/2021,Tuition Fee,Award costs,Bangor University,PIN051952,4267.2,
FCDO,CSC,26/03/2021,Tuition Fee,Award costs,Bangor University,PIN051953,4267.2,
FCDO,CSC,26/03/2021,Tuition Fee,Award costs,University of Portsmouth,PIN051954,2920,
FCDO,CSC,26/03/2021,Tuition Fee,Award costs,University of Portsmouth,PIN051955,2920,
FCDO,CSC,26/03/2021,Tuition Fee,Award costs,University of Portsmouth,PIN051956,5840,
FCDO,CSC,26/03/2021,Tuition Fee,Award costs,University of Portsmouth,PIN051957,5840,
FCDO,CSC,26/03/2021,Tuition Fee,Award costs,University of Portsmouth,PIN051958,5840,
FCDO,CSC,26/03/2021,Tuition Fee,Award costs,University of Portsmouth,PIN051959,5840,
FCDO,CSC,26/03/2021,Tuition Fee,Award costs,University of Portsmouth,PIN051960,5840,
FCDO,CSC,26/03/2021,Tuition Fee,Award costs,University of Portsmouth,PIN051961,2920,
DFE,CSC,26/03/2021,Scholar Allowances,Award costs,University of Oxford,PIN051962,170,
DFE,CSC,26/03/2021,Scholar Allowances,Award costs,University of Oxford,PIN051962,600,
DFE,CSC,26/03/2021,Tuition Fee,Award costs,University of Oxford,PIN051962,17603,
FCDO,CSC,26/03/2021,Tuition Fee,Award costs,Lond Sch Hygiene & Tropical Me,PIN051963,-3873.6,
FCDO,CSC,26/03/2021,Scholar Engagement,Programme Costs,Future Learn Limited,PIN051964,9600,
FCDO,CSC,26/03/2021,NHS Levy For Scholars,Programme Costs,Foreign & Commonwealth Office,PIN051965,-2250,
FCDO,CSC,26/03/2021,NHS Levy For Scholars,Programme Costs,Foreign & Commonwealth Office,PIN051965,300120,
FCDO,CSC,26/03/2021,Visa Costs,Programme Costs,Foreign & Commonwealth Office,PIN051965,136764,
FCDO,CSC,26/03/2021,Scholar Stipend,Award costs,Scholar,PIN051966,1116,
FCDO,CSC,26/03/2021,Scholar Stipend,Award costs,Scholar,PIN051967,4107,
FCDO,CSC,26/03/2021,Scholar Stipend,Award costs,Scholar,PIN051968,1116,
FCDO,CSC,26/03/2021,Scholar Stipend,Award costs,Scholar,PIN051969,1369,
FCDO,CSC,26/03/2021,Scholar Stipend,Award costs,Scholar,PIN051970,1116,
FCDO,CSC,26/03/2021,Scholar Stipend,Award costs,Scholar,PIN051971,1116,
FCDO,CSC,26/03/2021,Scholar Stipend,Award costs,Scholar,PIN051973,1369,
FCDO,CSC,26/03/2021,Scholar Stipend,Award costs,Scholar,PIN051974,1116,
FCDO,CSC,26/03/2021,Scholar Stipend,Award costs,Scholar,PIN051975,1116,
FCDO,CSC,26/03/2021,Scholar Stipend,Award costs,Scholar,PIN051976,1116,
FCDO,CSC,26/03/2021,Scholar Stipend,Award costs,Scholar,PIN051977,1369,
FCDO,CSC,26/03/2021,Scholar Stipend,Award costs,Scholar,PIN051978,558,
FCDO,CSC,26/03/2021,Scholar Stipend,Award costs,Scholar,PIN051979,1369,
FCDO,CSC,26/03/2021,Scholar Stipend,Award costs,Scholar,PIN051980,1116,
FCDO,CSC,26/03/2021,Scholar Stipend,Award costs,Scholar,PIN051981,1116,
FCDO,CSC,26/03/2021,Scholar Stipend,Award costs,Scholar,PIN051982,1116,
FCDO,CSC,31/03/2021,Scholar Stipend,Award costs,Scholar,PIN051983,1116,
FCDO,CSC,26/03/2021,Scholar Stipend,Award costs,Scholar,PIN051984,1116,
FCDO,CSC,26/03/2021,Scholar Stipend,Award costs,Scholar,PIN051985,1116,
FCDO,CSC,26/03/2021,Scholar Stipend,Award costs,Scholar,PIN051986,1369,
FCDO,CSC,26/03/2021,Scholar Stipend,Award costs,Scholar,PIN051987,1116,
FCDO,CSC,26/03/2021,Scholar Stipend,Award costs,Scholar,PIN051988,1116,
FCDO,CSC,26/03/2021,Scholar Stipend,Award costs,Scholar,PIN051989,1116,
FCDO,CSC,26/03/2021,Scholar Stipend,Award costs,Scholar,PIN051990,1116,
FCDO,CSC,26/03/2021,Scholar Stipend,Award costs,Scholar,PIN051991,1116,
FCDO,CSC,26/03/2021,Scholar Stipend,Award costs,Scholar,PIN051992,1116,
FCDO,CSC,26/03/2021,Scholar Stipend,Award costs,Scholar,PIN051993,1116,
FCDO,CSC,26/03/2021,Scholar Stipend,Award costs,Scholar,PIN051994,1116,
FCDO,CSC,26/03/2021,Scholar Stipend,Award costs,Scholar,PIN051995,1116,
FCDO,CSC,26/03/2021,Scholar Stipend,Award costs,Scholar,PIN051996,1116,
FCDO,CSC,26/03/2021,Scholar Stipend,Award costs,Scholar,PIN051997,558,
FCDO,CSC,26/03/2021,Scholar Stipend,Award costs,Scholar,PIN051998,1369,
FCDO,CSC,26/03/2021,Scholar Stipend,Award costs,Scholar,PIN051999,1116,
FCDO,CSC,26/03/2021,Scholar Stipend,Award costs,Scholar,PIN052000,1116,
FCDO,CSC,26/03/2021,Scholar Stipend,Award costs,Scholar,PIN052001,1116,
FCDO,CSC,26/03/2021,Scholar Stipend,Award costs,Scholar,PIN052002,1116,
FCDO,CSC,26/03/2021,Scholar Stipend,Award costs,Scholar,PIN052003,1116,
FCDO,CSC,26/03/2021,Scholar Stipend,Award costs,Scholar,PIN052004,1116,
FCDO,CSC,26/03/2021,Scholar Stipend,Award costs,Scholar,PIN052005,1116,
FCDO,CSC,26/03/2021,Scholar Stipend,Award costs,Scholar,PIN052006,1369,
FCDO,CSC,26/03/2021,Scholar Stipend,Award costs,Scholar,PIN052007,1369,
FCDO,CSC,26/03/2021,Scholar Stipend,Award costs,Scholar,PIN052008,1116,
FCDO,CSC,26/03/2021,Scholar Stipend,Award costs,Scholar,PIN052009,1116,
FCDO,CSC,26/03/2021,Scholar Stipend,Award costs,Scholar,PIN052010,1116,
FCDO,CSC,26/03/2021,Scholar Stipend,Award costs,Scholar,PIN052011,1116,
FCDO,CSC,26/03/2021,Scholar Stipend,Award costs,Scholar,PIN052012,1116,
FCDO,CSC,26/03/2021,Scholar Stipend,Award costs,Scholar,PIN052013,1116,
FCDO,CSC,26/03/2021,Scholar Stipend,Award costs,Scholar,PIN052014,1116,
FCDO,CSC,26/03/2021,Scholar Stipend,Award costs,Scholar,PIN052015,1116,
FCDO,CSC,26/03/2021,Scholar Stipend,Award costs,Scholar,PIN052016,1116,
FCDO,CSC,26/03/2021,Scholar Stipend,Award costs,Scholar,PIN052017,1116,
FCDO,CSC,26/03/2021,Scholar Stipend,Award costs,Scholar,PIN052018,1369,
FCDO,CSC,26/03/2021,Scholar Stipend,Award costs,Scholar,PIN052019,1116,
FCDO,CSC,26/03/2021,Scholar Stipend,Award costs,Scholar,PIN052020,1369,
FCDO,CSC,26/03/2021,Scholar Stipend,Award costs,Scholar,PIN052021,1116,
FCDO,CSC,26/03/2021,Scholar Stipend,Award costs,Scholar,PIN052022,1369,
FCDO,CSC,26/03/2021,Scholar Stipend,Award costs,Scholar,PIN052023,1116,
FCDO,CSC,26/03/2021,Scholar Stipend,Award costs,Scholar,PIN052024,1116,
FCDO,CSC,26/03/2021,Scholar Stipend,Award costs,Scholar,PIN052025,1116,
FCDO,CSC,26/03/2021,Scholar Stipend,Award costs,Scholar,PIN052027,1116,
FCDO,CSC,26/03/2021,Scholar Stipend,Award costs,Scholar,PIN052028,1116,
FCDO,CSC,26/03/2021,Scholar Stipend,Award costs,Scholar,PIN052029,1369,
FCDO,CSC,26/03/2021,Scholar Stipend,Award costs,Scholar,PIN052030,1116,
FCDO,CSC,26/03/2021,Scholar Stipend,Award costs,Scholar,PIN052031,1369,
FCDO,CSC,26/03/2021,Scholar Stipend,Award costs,Scholar,PIN052032,1116,
FCDO,CSC,26/03/2021,Scholar Stipend,Award costs,Scholar,PIN052033,558,
FCDO,CSC,26/03/2021,Scholar Stipend,Award costs,Scholar,PIN052034,1116,
FCDO,CSC,26/03/2021,Scholar Stipend,Award costs,Scholar,PIN052036,1116,
FCDO,CSC,26/03/2021,Scholar Stipend,Award costs,Scholar,PIN052037,1116,
FCDO,CSC,26/03/2021,Scholar Stipend,Award costs,Scholar,PIN052038,1116,
FCDO,CSC,26/03/2021,Scholar Stipend,Award costs,Scholar,PIN052039,1116,
FCDO,CSC,26/03/2021,Scholar Stipend,Award costs,Scholar,PIN052040,1116,
FCDO,CSC,26/03/2021,Scholar Stipend,Award costs,Scholar,PIN052041,1116,
FCDO,CSC,26/03/2021,Scholar Stipend,Award costs,Scholar,PIN052042,1116,
FCDO,CSC,26/03/2021,Scholar Stipend,Award costs,Scholar,PIN052043,1116,
FCDO,CSC,26/03/2021,Scholar Stipend,Award costs,Scholar,PIN052044,1116,
FCDO,CSC,26/03/2021,Scholar Stipend,Award costs,Scholar,PIN052045,1116,
FCDO,CSC,26/03/2021,Scholar Stipend,Award costs,Scholar,PIN052046,1116,
FCDO,CSC,26/03/2021,Scholar Stipend,Award costs,Scholar,PIN052047,1116,
FCDO,CSC,26/03/2021,Scholar Stipend,Award costs,Scholar,PIN052048,1116,
FCDO,CSC,26/03/2021,Scholar Stipend,Award costs,Scholar,PIN052049,1116,
FCDO,CSC,26/03/2021,Scholar Stipend,Award costs,Scholar,PIN052050,1116,
FCDO,CSC,26/03/2021,Scholar Stipend,Award costs,Scholar,PIN052051,1116,
FCDO,CSC,26/03/2021,Scholar Stipend,Award costs,Scholar,PIN052052,1116,
FCDO,CSC,26/03/2021,Scholar Stipend,Award costs,Scholar,PIN052053,3348,
FCDO,CSC,26/03/2021,Scholar Stipend,Award costs,Scholar,PIN052054,1369,
FCDO,CSC,26/03/2021,Scholar Stipend,Award costs,Scholar,PIN052055,1116,
FCDO,CSC,26/03/2021,Scholar Stipend,Award costs,Scholar,PIN052056,1116,
FCDO,CSC,26/03/2021,Scholar Stipend,Award costs,Scholar,PIN052057,1116,
FCDO,CSC,26/03/2021,Scholar Stipend,Award costs,Scholar,PIN052058,1116,
FCDO,CSC,26/03/2021,Scholar Stipend,Award costs,Scholar,PIN052059,1369,
FCDO,CSC,26/03/2021,Scholar Stipend,Award costs,Scholar,PIN052060,1369,
FCDO,CSC,26/03/2021,Scholar Stipend,Award costs,Scholar,PIN052061,1116,
FCDO,CSC,26/03/2021,Scholar Stipend,Award costs,Scholar,PIN052062,1116,
FCDO,CSC,26/03/2021,Scholar Stipend,Award costs,Scholar,PIN052063,1116,
FCDO,CSC,26/03/2021,Scholar Stipend,Award costs,Scholar,PIN052064,1116,
FCDO,CSC,26/03/2021,Scholar Stipend,Award costs,Scholar,PIN052065,1116,
FCDO,CSC,26/03/2021,Scholar Stipend,Award costs,Scholar,PIN052066,1369,
FCDO,CSC,26/03/2021,Scholar Stipend,Award costs,Scholar,PIN052067,1116,
FCDO,CSC,26/03/2021,Scholar Stipend,Award costs,Scholar,PIN052068,1116,
FCDO,CSC,26/03/2021,Scholar Stipend,Award costs,Scholar,PIN052069,1116,
FCDO,CSC,26/03/2021,Scholar Stipend,Award costs,Scholar,PIN052070,1116,
FCDO,CSC,26/03/2021,Scholar Stipend,Award costs,Scholar,PIN052071,1116,
FCDO,CSC,26/03/2021,Scholar Stipend,Award costs,Scholar,PIN052072,1116,
FCDO,CSC,26/03/2021,Scholar Stipend,Award costs,Scholar,PIN052073,1116,
FCDO,CSC,26/03/2021,Scholar Stipend,Award costs,Scholar,PIN052074,1116,
FCDO,CSC,26/03/2021,Scholar Stipend,Award costs,Scholar,PIN052075,1116,
FCDO,CSC,26/03/2021,Scholar Stipend,Award costs,Scholar,PIN052076,1116,
FCDO,CSC,26/03/2021,Scholar Stipend,Award costs,Scholar,PIN052077,1116,
FCDO,CSC,26/03/2021,Scholar Stipend,Award costs,Scholar,PIN052078,1116,
FCDO,CSC,26/03/2021,Scholar Stipend,Award costs,Scholar,PIN052079,1116,
FCDO,CSC,26/03/2021,Scholar Stipend,Award costs,Scholar,PIN052080,1369,
FCDO,CSC,26/03/2021,Scholar Stipend,Award costs,Scholar,PIN052081,1116,
FCDO,CSC,26/03/2021,Scholar Stipend,Award costs,Scholar,PIN052082,1369,
FCDO,CSC,26/03/2021,Scholar Stipend,Award costs,Scholar,PIN052083,1116,
FCDO,CSC,26/03/2021,Scholar Stipend,Award costs,Scholar,PIN052084,1116,
FCDO,CSC,26/03/2021,Scholar Stipend,Award costs,Scholar,PIN052085,1116,
FCDO,CSC,26/03/2021,Scholar Stipend,Award costs,Scholar,PIN052086,1369,
FCDO,CSC,26/03/2021,Scholar Stipend,Award costs,Scholar,PIN052087,1116,
FCDO,CSC,26/03/2021,Scholar Stipend,Award costs,Scholar,PIN052088,1116,
FCDO,CSC,26/03/2021,Scholar Stipend,Award costs,Scholar,PIN052089,1116,
FCDO,CSC,26/03/2021,Scholar Stipend,Award costs,Scholar,PIN052090,1116,
FCDO,CSC,26/03/2021,Scholar Stipend,Award costs,Scholar,PIN052091,1116,
FCDO,CSC,26/03/2021,Scholar Stipend,Award costs,Scholar,PIN052092,1116,
FCDO,CSC,26/03/2021,Scholar Stipend,Award costs,Scholar,PIN052093,1369,
FCDO,CSC,26/03/2021,Scholar Stipend,Award costs,Scholar,PIN052095,1116,
FCDO,CSC,26/03/2021,Scholar Stipend,Award costs,Scholar,PIN052096,1116,
FCDO,CSC,26/03/2021,Scholar Stipend,Award costs,Scholar,PIN052097,1116,
FCDO,CSC,26/03/2021,Scholar Stipend,Programme Costs,Scholar,PIN052098,1116,
FCDO,CSC,26/03/2021,Scholar Stipend,Award costs,Scholar,PIN052099,1116,
FCDO,CSC,26/03/2021,Scholar Stipend,Award costs,Scholar,PIN052100,1116,
FCDO,CSC,26/03/2021,Scholar Stipend,Award costs,Scholar,PIN052101,1116,
FCDO,CSC,26/03/2021,Scholar Stipend,Award costs,Scholar,PIN052102,1116,
FCDO,CSC,26/03/2021,Scholar Stipend,Award costs,Scholar,PIN052103,1116,
FCDO,CSC,26/03/2021,Scholar Stipend,Award costs,Scholar,PIN052104,1116,
FCDO,CSC,26/03/2021,Scholar Stipend,Award costs,Scholar,PIN052105,1116,
FCDO,CSC,26/03/2021,Scholar Stipend,Award costs,Scholar,PIN052106,558,
FCDO,CSC,26/03/2021,Scholar Stipend,Award costs,Scholar,PIN052107,1116,
FCDO,CSC,26/03/2021,Scholar Stipend,Award costs,Scholar,PIN052108,1369,
FCDO,CSC,26/03/2021,Scholar Stipend,Award costs,Scholar,PIN052109,558,
FCDO,CSC,26/03/2021,Scholar Stipend,Award costs,Scholar,PIN052110,558,
FCDO,CSC,26/03/2021,Scholar Stipend,Award costs,Scholar,PIN052111,1116,
FCDO,CSC,26/03/2021,Scholar Stipend,Award costs,Scholar,PIN052112,1116,
FCDO,CSC,26/03/2021,Scholar Stipend,Award costs,Scholar,PIN052113,1116,
FCDO,CSC,26/03/2021,Scholar Stipend,Award costs,Scholar,PIN052114,1116,
FCDO,CSC,26/03/2021,Scholar Stipend,Award costs,Scholar,PIN052115,1369,
FCDO,CSC,26/03/2021,Scholar Stipend,Award costs,Scholar,PIN052116,1116,
FCDO,CSC,26/03/2021,Scholar Stipend,Award costs,Scholar,PIN052117,1369,
FCDO,CSC,26/03/2021,Scholar Stipend,Award costs,Scholar,PIN052119,1369,
FCDO,CSC,26/03/2021,Scholar Stipend,Award costs,Scholar,PIN052120,1116,
FCDO,CSC,26/03/2021,Scholar Stipend,Award costs,Scholar,PIN052121,1116,
FCDO,CSC,26/03/2021,Scholar Stipend,Award costs,Scholar,PIN052123,1369,
FCDO,CSC,26/03/2021,Scholar Stipend,Award costs,Scholar,PIN052124,1116,
FCDO,CSC,26/03/2021,Scholar Stipend,Award costs,Scholar,PIN052125,1369,
FCDO,CSC,26/03/2021,Scholar Stipend,Award costs,Scholar,PIN052126,1369,
FCDO,CSC,26/03/2021,Scholar Stipend,Award costs,Scholar,PIN052127,1116,
FCDO,CSC,26/03/2021,Scholar Stipend,Award costs,Scholar,PIN052128,1116,
FCDO,CSC,26/03/2021,Scholar Stipend,Award costs,Scholar,PIN052129,1116,
FCDO,CSC,26/03/2021,Scholar Stipend,Award costs,Scholar,PIN052130,1116,
FCDO,CSC,26/03/2021,Scholar Stipend,Award costs,Scholar,PIN052131,1116,
FCDO,CSC,26/03/2021,Scholar Stipend,Award costs,Scholar,PIN052132,1116,
FCDO,CSC,26/03/2021,Scholar Stipend,Award costs,Scholar,PIN052133,1369,
FCDO,CSC,26/03/2021,Scholar Stipend,Award costs,Scholar,PIN052134,1116,
FCDO,CSC,26/03/2021,Scholar Stipend,Award costs,Scholar,PIN052135,1116,
FCDO,CSC,26/03/2021,Scholar Stipend,Award costs,Scholar,PIN052136,1116,
FCDO,CSC,26/03/2021,Scholar Stipend,Award costs,Scholar,PIN052137,1116,
FCDO,CSC,26/03/2021,Scholar Stipend,Award costs,Scholar,PIN052138,1116,
FCDO,CSC,26/03/2021,Scholar Stipend,Award costs,Scholar,PIN052139,1116,
FCDO,CSC,26/03/2021,Scholar Stipend,Award costs,Scholar,PIN052140,1116,
FCDO,CSC,26/03/2021,Scholar Stipend,Award costs,Scholar,PIN052141,1369,
FCDO,CSC,26/03/2021,Scholar Stipend,Award costs,Scholar,PIN052142,1116,
FCDO,CSC,26/03/2021,Scholar Stipend,Award costs,Scholar,PIN052143,1116,
FCDO,CSC,26/03/2021,Scholar Stipend,Award costs,Scholar,PIN052144,1116,
FCDO,CSC,26/03/2021,Scholar Stipend,Award costs,Scholar,PIN052145,1116,
FCDO,CSC,26/03/2021,Scholar Stipend,Award costs,Scholar,PIN052146,1116,
FCDO,CSC,26/03/2021,Scholar Stipend,Award costs,Scholar,PIN052147,558,
FCDO,CSC,26/03/2021,Scholar Stipend,Award costs,Scholar,PIN052148,1116,
FCDO,CSC,26/03/2021,Scholar Stipend,Award costs,Scholar,PIN052149,1116,
FCDO,CSC,26/03/2021,Scholar Stipend,Award costs,Scholar,PIN052151,1116,
FCDO,CSC,26/03/2021,Scholar Stipend,Award costs,Scholar,PIN052152,1116,
FCDO,CSC,26/03/2021,Scholar Stipend,Award costs,Scholar,PIN052153,1116,
FCDO,CSC,26/03/2021,Scholar Stipend,Award costs,Scholar,PIN052154,1369,
FCDO,CSC,26/03/2021,Scholar Stipend,Award costs,Scholar,PIN052155,1116,
FCDO,CSC,26/03/2021,Scholar Stipend,Award costs,Scholar,PIN052156,1116,
FCDO,CSC,26/03/2021,Scholar Stipend,Award costs,Scholar,PIN052157,1116,
FCDO,CSC,26/03/2021,Scholar Stipend,Award costs,Scholar,PIN052158,1116,
FCDO,CSC,26/03/2021,Scholar Stipend,Award costs,Scholar,PIN052159,1116,
FCDO,CSC,26/03/2021,Scholar Stipend,Award costs,Scholar,PIN052160,1116,
FCDO,CSC,26/03/2021,Scholar Stipend,Award costs,Scholar,PIN052161,1369,
FCDO,CSC,26/03/2021,Scholar Stipend,Award costs,Scholar,PIN052162,558,
FCDO,CSC,26/03/2021,Scholar Stipend,Award costs,Scholar,PIN052163,1116,
FCDO,CSC,26/03/2021,Scholar Stipend,Award costs,Scholar,PIN052164,1116,
FCDO,CSC,26/03/2021,Scholar Stipend,Award costs,Scholar,PIN052165,1369,
FCDO,CSC,26/03/2021,Scholar Stipend,Award costs,Scholar,PIN052166,1116,
FCDO,CSC,26/03/2021,Scholar Stipend,Award costs,Scholar,PIN052167,1116,
FCDO,CSC,26/03/2021,Scholar Stipend,Award costs,Scholar,PIN052168,1116,
FCDO,CSC,26/03/2021,Scholar Stipend,Award costs,Scholar,PIN052169,1116,
FCDO,CSC,26/03/2021,Scholar Stipend,Award costs,Scholar,PIN052170,1116,
FCDO,CSC,26/03/2021,Scholar Stipend,Award costs,Scholar,PIN052171,1116,
FCDO,CSC,26/03/2021,Scholar Stipend,Award costs,Scholar,PIN052172,1369,
FCDO,CSC,26/03/2021,Scholar Stipend,Award costs,Scholar,PIN052173,1116,
FCDO,CSC,26/03/2021,Scholar Stipend,Award costs,Scholar,PIN052174,1116,
FCDO,CSC,26/03/2021,Scholar Stipend,Award costs,Scholar,PIN052175,1116,
FCDO,CSC,26/03/2021,Scholar Stipend,Award costs,Scholar,PIN052176,1116,
FCDO,CSC,26/03/2021,Scholar Stipend,Award costs,Scholar,PIN052177,1369,
FCDO,CSC,26/03/2021,Scholar Stipend,Award costs,Scholar,PIN052178,1116,
FCDO,CSC,26/03/2021,Scholar Stipend,Award costs,Scholar,PIN052179,1116,
FCDO,CSC,26/03/2021,Scholar Stipend,Award costs,Scholar,PIN052180,1116,
FCDO,CSC,26/03/2021,Scholar Stipend,Award costs,Scholar,PIN052182,1369,
FCDO,CSC,26/03/2021,Scholar Stipend,Award costs,Scholar,PIN052183,1116,
FCDO,CSC,26/03/2021,Scholar Stipend,Award costs,Scholar,PIN052184,1116,
FCDO,CSC,26/03/2021,Scholar Stipend,Award costs,Scholar,PIN052185,1116,
FCDO,CSC,26/03/2021,Scholar Stipend,Award costs,Scholar,PIN052186,1116,
FCDO,CSC,26/03/2021,Scholar Stipend,Award costs,Scholar,PIN052187,1116,
FCDO,CSC,26/03/2021,Scholar Stipend,Award costs,Scholar,PIN052188,1369,
FCDO,CSC,26/03/2021,Scholar Stipend,Award costs,Scholar,PIN052189,1369,
FCDO,CSC,26/03/2021,Scholar Stipend,Award costs,Scholar,PIN052190,1369,
FCDO,CSC,26/03/2021,Scholar Stipend,Award costs,Scholar,PIN052191,1116,
FCDO,CSC,26/03/2021,Scholar Stipend,Award costs,Scholar,PIN052192,1116,
FCDO,CSC,26/03/2021,Scholar Stipend,Award costs,Scholar,PIN052193,1116,
FCDO,CSC,26/03/2021,Scholar Stipend,Award costs,Scholar,PIN052194,1369,
FCDO,CSC,26/03/2021,Scholar Stipend,Award costs,Scholar,PIN052195,1116,
FCDO,CSC,26/03/2021,Scholar Stipend,Award costs,Scholar,PIN052196,1369,
FCDO,CSC,26/03/2021,Scholar Stipend,Award costs,Scholar,PIN052197,1116,
FCDO,CSC,26/03/2021,Scholar Stipend,Award costs,Scholar,PIN052198,1116,
FCDO,CSC,26/03/2021,Scholar Stipend,Award costs,Scholar,PIN052199,1116,
FCDO,CSC,26/03/2021,Scholar Stipend,Award costs,Scholar,PIN052200,1116,
FCDO,CSC,26/03/2021,Scholar Stipend,Award costs,Scholar,PIN052201,1369,
FCDO,CSC,26/03/2021,Scholar Stipend,Award costs,Scholar,PIN052202,1116,
FCDO,CSC,26/03/2021,Scholar Stipend,Award costs,Scholar,PIN052203,1116,
FCDO,CSC,26/03/2021,Scholar Stipend,Award costs,Scholar,PIN052204,1369,
FCDO,CSC,26/03/2021,Scholar Stipend,Award costs,Scholar,PIN052205,1116,
FCDO,CSC,26/03/2021,Scholar Stipend,Award costs,Scholar,PIN052206,1116,
FCDO,CSC,26/03/2021,Scholar Stipend,Award costs,Scholar,PIN052207,1116,
FCDO,CSC,26/03/2021,Scholar Stipend,Award costs,Scholar,PIN052208,1116,
FCDO,CSC,26/03/2021,Scholar Stipend,Award costs,Scholar,PIN052209,1369,
FCDO,CSC,26/03/2021,Scholar Stipend,Award costs,Scholar,PIN052210,1369,
FCDO,CSC,26/03/2021,Scholar Stipend,Award costs,Scholar,PIN052212,1116,
FCDO,CSC,26/03/2021,Scholar Stipend,Award costs,Scholar,PIN052213,1116,
FCDO,CSC,26/03/2021,Scholar Stipend,Award costs,Scholar,PIN052214,1369,
FCDO,CSC,26/03/2021,Scholar Stipend,Award costs,Scholar,PIN052215,1116,
FCDO,CSC,26/03/2021,Scholar Stipend,Award costs,Scholar,PIN052216,1116,
FCDO,CSC,26/03/2021,Scholar Stipend,Award costs,Scholar,PIN052217,1116,
FCDO,CSC,26/03/2021,Scholar Stipend,Award costs,Scholar,PIN052218,1116,
FCDO,CSC,26/03/2021,Scholar Stipend,Award costs,Scholar,PIN052219,1116,
FCDO,CSC,26/03/2021,Scholar Stipend,Award costs,Scholar,PIN052220,1116,
FCDO,CSC,26/03/2021,Scholar Stipend,Award costs,Scholar,PIN052221,1116,
FCDO,CSC,26/03/2021,Scholar Stipend,Award costs,Scholar,PIN052222,1369,
FCDO,CSC,26/03/2021,Scholar Stipend,Award costs,Scholar,PIN052223,1116,
FCDO,CSC,26/03/2021,Scholar Stipend,Award costs,Scholar,PIN052224,1116,
FCDO,CSC,26/03/2021,Scholar Stipend,Award costs,Scholar,PIN052225,1369,
FCDO,CSC,26/03/2021,Scholar Stipend,Award costs,Scholar,PIN052226,1116,
FCDO,CSC,26/03/2021,Scholar Stipend,Award costs,Scholar,PIN052227,652.17,
FCDO,CSC,26/03/2021,Scholar Stipend,Award costs,Scholar,PIN052228,1116,
FCDO,CSC,26/03/2021,Scholar Stipend,Award costs,Scholar,PIN052229,1116,
FCDO,CSC,26/03/2021,Scholar Stipend,Award costs,Scholar,PIN052230,1116,
FCDO,CSC,26/03/2021,Scholar Stipend,Award costs,Scholar,PIN052231,1116,
FCDO,CSC,26/03/2021,Scholar Stipend,Award costs,Scholar,PIN052232,1116,
FCDO,CSC,26/03/2021,Scholar Stipend,Award costs,Scholar,PIN052233,1116,
FCDO,CSC,26/03/2021,Scholar Stipend,Award costs,Scholar,PIN052234,1116,
FCDO,CSC,26/03/2021,Scholar Stipend,Award costs,Scholar,PIN052235,1116,
FCDO,CSC,26/03/2021,Scholar Stipend,Award costs,Scholar,PIN052237,1116,
FCDO,CSC,26/03/2021,Scholar Stipend,Award costs,Scholar,PIN052238,1116,
FCDO,CSC,26/03/2021,Scholar Stipend,Award costs,Scholar,PIN052239,1116,
FCDO,CSC,26/03/2021,Home Rate Stipend,Award costs,Scholar,PIN052246,721.86,
FCDO,CSC,26/03/2021,Home Rate Stipend,Award costs,Scholar,PIN052247,721.86,
FCDO,CSC,26/03/2021,Home Rate Stipend,Award costs,Scholar,PIN052248,721.86,
FCDO,CSC,26/03/2021,Home Rate Stipend,Award costs,Scholar,PIN052250,721.86,
FCDO,CSC,26/03/2021,Home Rate Stipend,Award costs,Scholar,PIN052252,721.86,
FCDO,CSC,26/03/2021,Home Rate Stipend,Award costs,Scholar,PIN052257,721.86,
FCDO,CSC,26/03/2021,Home Rate Stipend,Award costs,Scholar,PIN052259,1116,
FCDO,CSC,26/03/2021,Home Rate Stipend,Award costs,Scholar,PIN052260,721.86,
FCDO,CSC,26/03/2021,Home Rate Stipend,Award costs,Scholar,PIN052262,962.28,
FCDO,CSC,26/03/2021,Home Rate Stipend,Award costs,Scholar,PIN052264,962.28,
FCDO,CSC,26/03/2021,Scholar Stipend,Award costs,Scholar,PIN052391,513.31,
FCDO,CSC,26/03/2021,Scholar Stipend,Award costs,Scholar,PIN052392,513.31,
FCDO,CSC,26/03/2021,Disability Allowance,Programme Costs,Scholar,PIN052395,1450,
FCDO,CSC,26/03/2021,Scholar Stipend,Award costs,Scholar,PIN052397,1116,
FCDO,CSC,26/03/2021,Scholar Stipend,Award costs,Scholar,PIN052398,1116,
FCDO,CSC,26/03/2021,Scholar Stipend,Award costs,Scholar,PIN052399,1369,
FCDO,CSC,26/03/2021,Scholar Stipend,Award costs,Scholar,PIN052400,1116,
FCDO,CSC,26/03/2021,Scholar Stipend,Award costs,Scholar,PIN052401,1116,
FCDO,CSC,26/03/2021,Scholar Stipend,Award costs,Scholar,PIN052402,558,
FCDO,CSC,26/03/2021,Scholar Stipend,Award costs,Scholar,PIN052403,1369,
FCDO,CSC,26/03/2021,Scholar Stipend,Award costs,Scholar,PIN052404,1116,
FCDO,CSC,26/03/2021,Scholar Stipend,Award costs,Scholar,PIN052405,1116,
FCDO,CSC,26/03/2021,Scholar Stipend,Award costs,Scholar,PIN052406,1116,
FCDO,CSC,26/03/2021,Scholar Stipend,Award costs,Scholar,PIN052407,1369,
FCDO,CSC,26/03/2021,Scholar Stipend,Award costs,Scholar,PIN052408,558,
FCDO,CSC,26/03/2021,Scholar Stipend,Award costs,Scholar,PIN052409,1369,
FCDO,CSC,26/03/2021,Scholar Stipend,Award costs,Scholar,PIN052410,1116,
FCDO,CSC,26/03/2021,Scholar Stipend,Award costs,Scholar,PIN052411,1116,
FCDO,CSC,26/03/2021,Scholar Stipend,Award costs,Scholar,PIN052412,1116,
FCDO,CSC,31/03/2021,Scholar Stipend,Award costs,Scholar,PIN052413,1116,
FCDO,CSC,26/03/2021,Scholar Stipend,Award costs,Scholar,PIN052414,1116,
FCDO,CSC,26/03/2021,Scholar Stipend,Award costs,Scholar,PIN052415,1116,
FCDO,CSC,26/03/2021,Scholar Stipend,Award costs,Scholar,PIN052416,1369,
FCDO,CSC,26/03/2021,Scholar Stipend,Award costs,Scholar,PIN052417,1116,
FCDO,CSC,26/03/2021,Scholar Stipend,Award costs,Scholar,PIN052418,1116,
FCDO,CSC,26/03/2021,Scholar Stipend,Award costs,Scholar,PIN052420,1116,
FCDO,CSC,26/03/2021,Scholar Stipend,Award costs,Scholar,PIN052421,1116,
FCDO,CSC,26/03/2021,Scholar Stipend,Award costs,Scholar,PIN052422,1116,
FCDO,CSC,26/03/2021,Scholar Stipend,Award costs,Scholar,PIN052423,1116,
FCDO,CSC,26/03/2021,Scholar Stipend,Award costs,Scholar,PIN052424,1116,
FCDO,CSC,26/03/2021,Scholar Stipend,Award costs,Scholar,PIN052425,1116,
FCDO,CSC,26/03/2021,Scholar Stipend,Award costs,Scholar,PIN052426,1116,
FCDO,CSC,26/03/2021,Scholar Stipend,Award costs,Scholar,PIN052427,558,
FCDO,CSC,26/03/2021,Scholar Stipend,Award costs,Scholar,PIN052428,1369,
FCDO,CSC,26/03/2021,Scholar Stipend,Award costs,Scholar,PIN052429,1116,
FCDO,CSC,26/03/2021,Scholar Stipend,Award costs,Scholar,PIN052430,1116,
FCDO,CSC,26/03/2021,Scholar Stipend,Award costs,Scholar,PIN052431,1116,
FCDO,CSC,26/03/2021,Scholar Stipend,Award costs,Scholar,PIN052432,1116,
FCDO,CSC,26/03/2021,Scholar Stipend,Award costs,Scholar,PIN052433,1116,
FCDO,CSC,26/03/2021,Scholar Stipend,Award costs,Scholar,PIN052434,1116,
FCDO,CSC,26/03/2021,Scholar Stipend,Award costs,Scholar,PIN052435,1116,
FCDO,CSC,26/03/2021,Scholar Stipend,Award costs,Scholar,PIN052436,1369,
FCDO,CSC,26/03/2021,Scholar Stipend,Award costs,Scholar,PIN052437,1369,
FCDO,CSC,26/03/2021,Scholar Stipend,Award costs,Scholar,PIN052438,1116,
FCDO,CSC,26/03/2021,Scholar Stipend,Award costs,Scholar,PIN052439,1116,
FCDO,CSC,26/03/2021,Scholar Stipend,Award costs,Scholar,PIN052440,1116,
FCDO,CSC,26/03/2021,Scholar Stipend,Award costs,Scholar,PIN052441,1116,
FCDO,CSC,26/03/2021,Scholar Stipend,Award costs,Scholar,PIN052442,1116,
FCDO,CSC,26/03/2021,Scholar Stipend,Award costs,Scholar,PIN052443,1116,
FCDO,CSC,26/03/2021,Scholar Stipend,Award costs,Scholar,PIN052444,1116,
FCDO,CSC,26/03/2021,Scholar Stipend,Award costs,Scholar,PIN052445,1116,
FCDO,CSC,26/03/2021,Scholar Stipend,Award costs,Scholar,PIN052446,1116,
FCDO,CSC,26/03/2021,Scholar Stipend,Award costs,Scholar,PIN052447,1116,
FCDO,CSC,26/03/2021,Scholar Stipend,Award costs,Scholar,PIN052448,1369,
FCDO,CSC,26/03/2021,Scholar Stipend,Award costs,Scholar,PIN052449,1116,
FCDO,CSC,26/03/2021,Scholar Stipend,Award costs,Scholar,PIN052450,1369,
FCDO,CSC,26/03/2021,Scholar Stipend,Award costs,Scholar,PIN052451,1116,
FCDO,CSC,26/03/2021,Scholar Stipend,Award costs,Scholar,PIN052452,1369,
FCDO,CSC,26/03/2021,Scholar Stipend,Award costs,Scholar,PIN052453,1116,
FCDO,CSC,26/03/2021,Scholar Stipend,Award costs,Scholar,PIN052454,1116,
FCDO,CSC,26/03/2021,Scholar Stipend,Award costs,Scholar,PIN052455,1116,
FCDO,CSC,26/03/2021,Scholar Stipend,Award costs,Scholar,PIN052456,1116,
FCDO,CSC,26/03/2021,Scholar Stipend,Award costs,Scholar,PIN052457,1116,
FCDO,CSC,26/03/2021,Scholar Stipend,Award costs,Scholar,PIN052458,1369,
FCDO,CSC,26/03/2021,Scholar Stipend,Award costs,Scholar,PIN052459,1116,
FCDO,CSC,26/03/2021,Scholar Stipend,Award costs,Scholar,PIN052460,1369,
FCDO,CSC,26/03/2021,Scholar Stipend,Award costs,Scholar,PIN052461,1116,
FCDO,CSC,26/03/2021,Scholar Stipend,Award costs,Scholar,PIN052462,558,
FCDO,CSC,26/03/2021,Scholar Stipend,Award costs,Scholar,PIN052463,1116,
FCDO,CSC,26/03/2021,Scholar Stipend,Award costs,Scholar,PIN052464,1116,
FCDO,CSC,26/03/2021,Scholar Stipend,Award costs,Scholar,PIN052465,1116,
FCDO,CSC,26/03/2021,Scholar Stipend,Award costs,Scholar,PIN052466,1116,
FCDO,CSC,26/03/2021,Scholar Stipend,Award costs,Scholar,PIN052467,1116,
FCDO,CSC,26/03/2021,Scholar Stipend,Award costs,Scholar,PIN052468,1116,
FCDO,CSC,26/03/2021,Scholar Stipend,Award costs,Scholar,PIN052469,1116,
FCDO,CSC,26/03/2021,Scholar Stipend,Award costs,Scholar,PIN052470,1116,
FCDO,CSC,26/03/2021,Scholar Stipend,Award costs,Scholar,PIN052471,1116,
FCDO,CSC,26/03/2021,Scholar Stipend,Award costs,Scholar,PIN052472,1116,
FCDO,CSC,26/03/2021,Scholar Stipend,Award costs,Scholar,PIN052473,1116,
FCDO,CSC,26/03/2021,Scholar Stipend,Award costs,Scholar,PIN052474,1116,
FCDO,CSC,26/03/2021,Scholar Stipend,Award costs,Scholar,PIN052475,1116,
FCDO,CSC,26/03/2021,Scholar Stipend,Award costs,Scholar,PIN052476,1116,
FCDO,CSC,26/03/2021,Scholar Stipend,Award costs,Scholar,PIN052477,1116,
FCDO,CSC,26/03/2021,Scholar Stipend,Award costs,Scholar,PIN052478,1116,
FCDO,CSC,26/03/2021,Scholar Stipend,Award costs,Scholar,PIN052479,1116,
FCDO,CSC,26/03/2021,Scholar Stipend,Award costs,Scholar,PIN052480,1116,
FCDO,CSC,26/03/2021,Scholar Stipend,Award costs,Scholar,PIN052482,1116,
FCDO,CSC,26/03/2021,Scholar Stipend,Award costs,Scholar,PIN052483,1116,
FCDO,CSC,26/03/2021,Scholar Stipend,Award costs,Scholar,PIN052484,1116,
FCDO,CSC,26/03/2021,Scholar Stipend,Award costs,Scholar,PIN052485,1369,
FCDO,CSC,26/03/2021,Scholar Stipend,Award costs,Scholar,PIN052486,1369,
FCDO,CSC,26/03/2021,Scholar Stipend,Award costs,Scholar,PIN052487,1116,
FCDO,CSC,26/03/2021,Scholar Stipend,Award costs,Scholar,PIN052488,1116,
FCDO,CSC,26/03/2021,Scholar Stipend,Award costs,Scholar,PIN052489,1116,
FCDO,CSC,26/03/2021,Scholar Stipend,Award costs,Scholar,PIN052490,1116,
FCDO,CSC,26/03/2021,Scholar Stipend,Award costs,Scholar,PIN052491,1116,
FCDO,CSC,26/03/2021,Scholar Stipend,Award costs,Scholar,PIN052492,1369,
FCDO,CSC,26/03/2021,Scholar Stipend,Award costs,Scholar,PIN052493,1116,
FCDO,CSC,26/03/2021,Scholar Stipend,Award costs,Scholar,PIN052494,1116,
FCDO,CSC,26/03/2021,Scholar Stipend,Award costs,Scholar,PIN052495,1116,
FCDO,CSC,26/03/2021,Scholar Stipend,Award costs,Scholar,PIN052496,1116,
FCDO,CSC,26/03/2021,Scholar Stipend,Award costs,Scholar,PIN052497,1116,
FCDO,CSC,26/03/2021,Scholar Stipend,Award costs,Scholar,PIN052498,1116,
FCDO,CSC,26/03/2021,Scholar Stipend,Award costs,Scholar,PIN052499,1116,
FCDO,CSC,26/03/2021,Scholar Stipend,Award costs,Scholar,PIN052500,1116,
FCDO,CSC,26/03/2021,Scholar Stipend,Award costs,Scholar,PIN052501,1116,
FCDO,CSC,26/03/2021,Scholar Stipend,Award costs,Scholar,PIN052502,1116,
FCDO,CSC,26/03/2021,Scholar Stipend,Award costs,Scholar,PIN052503,1116,
FCDO,CSC,26/03/2021,Scholar Stipend,Award costs,Scholar,PIN052504,1116,
FCDO,CSC,26/03/2021,Scholar Stipend,Award costs,Scholar,PIN052505,1116,
FCDO,CSC,26/03/2021,Scholar Stipend,Award costs,Scholar,PIN052506,1369,
FCDO,CSC,26/03/2021,Scholar Stipend,Award costs,Scholar,PIN052507,1116,
FCDO,CSC,26/03/2021,Scholar Stipend,Award costs,Scholar,PIN052508,1369,
FCDO,CSC,26/03/2021,Scholar Stipend,Award costs,Scholar,PIN052509,1116,
FCDO,CSC,26/03/2021,Scholar Stipend,Award costs,Scholar,PIN052510,1116,
FCDO,CSC,26/03/2021,Scholar Stipend,Award costs,Scholar,PIN052511,1116,
FCDO,CSC,26/03/2021,Scholar Stipend,Award costs,Scholar,PIN052512,1369,
FCDO,CSC,26/03/2021,Scholar Stipend,Award costs,Scholar,PIN052513,1116,
FCDO,CSC,26/03/2021,Scholar Stipend,Award costs,Scholar,PIN052514,1116,
FCDO,CSC,26/03/2021,Scholar Stipend,Award costs,Scholar,PIN052515,1116,
FCDO,CSC,26/03/2021,Scholar Stipend,Award costs,Scholar,PIN052516,1116,
FCDO,CSC,26/03/2021,Scholar Stipend,Award costs,Scholar,PIN052517,1116,
FCDO,CSC,26/03/2021,Scholar Stipend,Award costs,Scholar,PIN052518,1116,
FCDO,CSC,26/03/2021,Scholar Stipend,Award costs,Scholar,PIN052519,1369,
FCDO,CSC,26/03/2021,Scholar Stipend,Award costs,Scholar,PIN052520,1116,
FCDO,CSC,26/03/2021,Scholar Stipend,Award costs,Scholar,PIN052521,1116,
FCDO,CSC,26/03/2021,Scholar Stipend,Award costs,Scholar,PIN052522,1116,
FCDO,CSC,26/03/2021,Scholar Stipend,Programme Costs,Scholar,PIN052523,1116,
FCDO,CSC,26/03/2021,Scholar Stipend,Award costs,Scholar,PIN052524,1116,
FCDO,CSC,26/03/2021,Scholar Stipend,Award costs,Scholar,PIN052525,1116,
FCDO,CSC,26/03/2021,Scholar Stipend,Award costs,Scholar,PIN052526,1116,
FCDO,CSC,26/03/2021,Scholar Stipend,Award costs,Scholar,PIN052527,1116,
FCDO,CSC,26/03/2021,Scholar Stipend,Award costs,Scholar,PIN052528,1116,
FCDO,CSC,26/03/2021,Scholar Stipend,Award costs,Scholar,PIN052529,1116,
FCDO,CSC,26/03/2021,Scholar Stipend,Award costs,Scholar,PIN052530,1116,
FCDO,CSC,26/03/2021,Scholar Stipend,Award costs,Scholar,PIN052531,558,
FCDO,CSC,26/03/2021,Scholar Stipend,Award costs,Scholar,PIN052532,1116,
FCDO,CSC,26/03/2021,Scholar Stipend,Award costs,Scholar,PIN052533,1369,
FCDO,CSC,26/03/2021,Scholar Stipend,Award costs,Scholar,PIN052534,558,
FCDO,CSC,26/03/2021,Scholar Stipend,Award costs,Scholar,PIN052535,558,
FCDO,CSC,26/03/2021,Scholar Stipend,Award costs,Scholar,PIN052536,1116,
FCDO,CSC,26/03/2021,Scholar Stipend,Award costs,Scholar,PIN052537,1116,
FCDO,CSC,26/03/2021,Scholar Stipend,Award costs,Scholar,PIN052538,1116,
FCDO,CSC,26/03/2021,Scholar Stipend,Award costs,Scholar,PIN052539,1116,
FCDO,CSC,26/03/2021,Scholar Stipend,Award costs,Scholar,PIN052540,1369,
FCDO,CSC,26/03/2021,Scholar Stipend,Award costs,Scholar,PIN052541,1116,
FCDO,CSC,26/03/2021,Scholar Stipend,Award costs,Scholar,PIN052542,1369,
FCDO,CSC,26/03/2021,Scholar Stipend,Award costs,Scholar,PIN052543,558,
FCDO,CSC,26/03/2021,Scholar Stipend,Award costs,Scholar,PIN052544,1369,
FCDO,CSC,26/03/2021,Scholar Stipend,Award costs,Scholar,PIN052545,1116,
FCDO,CSC,26/03/2021,Scholar Stipend,Award costs,Scholar,PIN052546,1116,
FCDO,CSC,26/03/2021,Scholar Stipend,Award costs,Scholar,PIN052547,1369,
FCDO,CSC,26/03/2021,Scholar Stipend,Award costs,Scholar,PIN052548,1116,
FCDO,CSC,26/03/2021,Scholar Stipend,Award costs,Scholar,PIN052549,1369,
FCDO,CSC,26/03/2021,Scholar Stipend,Award costs,Scholar,PIN052550,1369,
FCDO,CSC,26/03/2021,Scholar Stipend,Award costs,Scholar,PIN052551,1116,
FCDO,CSC,26/03/2021,Scholar Stipend,Award costs,Scholar,PIN052552,1116,
FCDO,CSC,26/03/2021,Scholar Stipend,Award costs,Scholar,PIN052553,1116,
FCDO,CSC,26/03/2021,Scholar Stipend,Award costs,Scholar,PIN052554,1116,
FCDO,CSC,26/03/2021,Scholar Stipend,Award costs,Scholar,PIN052555,1116,
FCDO,CSC,26/03/2021,Scholar Stipend,Award costs,Scholar,PIN052556,1116,
FCDO,CSC,26/03/2021,Scholar Stipend,Award costs,Scholar,PIN052557,1369,
FCDO,CSC,26/03/2021,Scholar Stipend,Award costs,Scholar,PIN052558,1116,
FCDO,CSC,26/03/2021,Scholar Stipend,Award costs,Scholar,PIN052559,1116,
FCDO,CSC,26/03/2021,Scholar Stipend,Award costs,Scholar,PIN052560,1116,
FCDO,CSC,26/03/2021,Scholar Stipend,Award costs,Scholar,PIN052561,1116,
FCDO,CSC,26/03/2021,Scholar Stipend,Award costs,Scholar,PIN052562,1116,
FCDO,CSC,26/03/2021,Scholar Stipend,Award costs,Scholar,PIN052563,1116,
FCDO,CSC,26/03/2021,Scholar Stipend,Award costs,Scholar,PIN052564,1116,
FCDO,CSC,26/03/2021,Scholar Stipend,Award costs,Scholar,PIN052565,1369,
FCDO,CSC,26/03/2021,Scholar Stipend,Award costs,Scholar,PIN052566,1116,
FCDO,CSC,26/03/2021,Scholar Stipend,Award costs,Scholar,PIN052567,1116,
FCDO,CSC,26/03/2021,Scholar Stipend,Award costs,Scholar,PIN052568,1116,
FCDO,CSC,26/03/2021,Scholar Stipend,Award costs,Scholar,PIN052569,1116,
FCDO,CSC,26/03/2021,Scholar Stipend,Award costs,Scholar,PIN052570,558,
FCDO,CSC,26/03/2021,Scholar Stipend,Award costs,Scholar,PIN052571,1116,
FCDO,CSC,26/03/2021,Scholar Stipend,Award costs,Scholar,PIN052572,1116,
FCDO,CSC,26/03/2021,Scholar Stipend,Award costs,Scholar,PIN052573,558,
FCDO,CSC,26/03/2021,Scholar Stipend,Award costs,Scholar,PIN052574,1116,
FCDO,CSC,26/03/2021,Scholar Stipend,Award costs,Scholar,PIN052575,1116,
FCDO,CSC,26/03/2021,Scholar Stipend,Award costs,Scholar,PIN052576,1116,
FCDO,CSC,26/03/2021,Scholar Stipend,Award costs,Scholar,PIN052577,1369,
FCDO,CSC,26/03/2021,Scholar Stipend,Award costs,Scholar,PIN052578,1116,
FCDO,CSC,26/03/2021,Scholar Stipend,Award costs,Scholar,PIN052579,1116,
FCDO,CSC,26/03/2021,Scholar Stipend,Award costs,Scholar,PIN052580,1116,
FCDO,CSC,26/03/2021,Scholar Stipend,Award costs,Scholar,PIN052581,1116,
FCDO,CSC,26/03/2021,Scholar Stipend,Award costs,Scholar,PIN052582,1116,
FCDO,CSC,26/03/2021,Scholar Stipend,Award costs,Scholar,PIN052583,1116,
FCDO,CSC,26/03/2021,Scholar Stipend,Award costs,Scholar,PIN052584,1369,
FCDO,CSC,26/03/2021,Scholar Stipend,Award costs,Scholar,PIN052585,558,
FCDO,CSC,26/03/2021,Scholar Stipend,Award costs,Scholar,PIN052586,1116,
FCDO,CSC,26/03/2021,Scholar Stipend,Award costs,Scholar,PIN052587,989.96,
FCDO,CSC,26/03/2021,Scholar Stipend,Award costs,Scholar,PIN052588,1369,
FCDO,CSC,26/03/2021,Scholar Stipend,Award costs,Scholar,PIN052589,1116,
FCDO,CSC,26/03/2021,Scholar Stipend,Award costs,Scholar,PIN052590,1116,
FCDO,CSC,26/03/2021,Scholar Stipend,Award costs,Scholar,PIN052591,1116,
FCDO,CSC,26/03/2021,Scholar Stipend,Award costs,Scholar,PIN052592,1116,
FCDO,CSC,26/03/2021,Scholar Stipend,Award costs,Scholar,PIN052593,1116,
FCDO,CSC,26/03/2021,Scholar Stipend,Award costs,Scholar,PIN052594,1116,
FCDO,CSC,26/03/2021,Scholar Stipend,Award costs,Scholar,PIN052595,1369,
FCDO,CSC,26/03/2021,Scholar Stipend,Award costs,Scholar,PIN052596,1116,
FCDO,CSC,26/03/2021,Scholar Stipend,Award costs,Scholar,PIN052597,1116,
FCDO,CSC,26/03/2021,Scholar Stipend,Award costs,Scholar,PIN052598,1116,
FCDO,CSC,26/03/2021,Scholar Stipend,Award costs,Scholar,PIN052599,1116,
FCDO,CSC,26/03/2021,Scholar Stipend,Award costs,Scholar,PIN052600,1369,
FCDO,CSC,26/03/2021,Scholar Stipend,Award costs,Scholar,PIN052601,1116,
FCDO,CSC,26/03/2021,Scholar Stipend,Award costs,Scholar,PIN052602,1116,
FCDO,CSC,26/03/2021,Scholar Stipend,Award costs,Scholar,PIN052603,1116,
FCDO,CSC,26/03/2021,Scholar Stipend,Award costs,Scholar,PIN052604,1369,
FCDO,CSC,26/03/2021,Scholar Stipend,Award costs,Scholar,PIN052605,1116,
FCDO,CSC,26/03/2021,Scholar Stipend,Award costs,Scholar,PIN052606,1116,
FCDO,CSC,26/03/2021,Scholar Stipend,Award costs,Scholar,PIN052607,1116,
FCDO,CSC,26/03/2021,Scholar Stipend,Award costs,Scholar,PIN052608,1116,
FCDO,CSC,26/03/2021,Scholar Stipend,Award costs,Scholar,PIN052609,1116,
FCDO,CSC,26/03/2021,Scholar Stipend,Award costs,Scholar,PIN052610,1369,
FCDO,CSC,26/03/2021,Scholar Stipend,Award costs,Scholar,PIN052611,1369,
FCDO,CSC,26/03/2021,Scholar Stipend,Award costs,Scholar,PIN052612,1369,
FCDO,CSC,26/03/2021,Scholar Stipend,Award costs,Scholar,PIN052613,1116,
FCDO,CSC,26/03/2021,Scholar Stipend,Award costs,Scholar,PIN052614,1116,
FCDO,CSC,26/03/2021,Scholar Stipend,Award costs,Scholar,PIN052615,1116,
FCDO,CSC,26/03/2021,Scholar Stipend,Award costs,Scholar,PIN052616,1369,
FCDO,CSC,26/03/2021,Scholar Stipend,Award costs,Scholar,PIN052617,1116,
FCDO,CSC,26/03/2021,Scholar Stipend,Award costs,Scholar,PIN052618,1369,
FCDO,CSC,26/03/2021,Scholar Stipend,Award costs,Scholar,PIN052619,1116,
FCDO,CSC,26/03/2021,Scholar Stipend,Award costs,Scholar,PIN052620,1116,
FCDO,CSC,26/03/2021,Scholar Stipend,Award costs,Scholar,PIN052621,1116,
FCDO,CSC,26/03/2021,Scholar Stipend,Award costs,Scholar,PIN052622,1116,
FCDO,CSC,26/03/2021,Scholar Stipend,Award costs,Scholar,PIN052623,1369,
FCDO,CSC,26/03/2021,Scholar Stipend,Award costs,Scholar,PIN052624,1116,
FCDO,CSC,26/03/2021,Scholar Stipend,Award costs,Scholar,PIN052625,1116,
FCDO,CSC,26/03/2021,Scholar Stipend,Award costs,Scholar,PIN052626,1369,
FCDO,CSC,26/03/2021,Scholar Stipend,Award costs,Scholar,PIN052627,1116,
FCDO,CSC,26/03/2021,Scholar Stipend,Award costs,Scholar,PIN052628,1116,
FCDO,CSC,26/03/2021,Scholar Stipend,Award costs,Scholar,PIN052629,1116,
FCDO,CSC,26/03/2021,Scholar Stipend,Award costs,Scholar,PIN052630,1116,
FCDO,CSC,26/03/2021,Scholar Stipend,Award costs,Scholar,PIN052631,1369,
FCDO,CSC,26/03/2021,Scholar Stipend,Award costs,Scholar,PIN052632,1369,
FCDO,CSC,26/03/2021,Scholar Stipend,Award costs,Scholar,PIN052633,684.5,
FCDO,CSC,26/03/2021,Scholar Stipend,Award costs,Scholar,PIN052634,1116,
FCDO,CSC,26/03/2021,Scholar Stipend,Award costs,Scholar,PIN052635,1116,
FCDO,CSC,26/03/2021,Scholar Stipend,Award costs,Scholar,PIN052636,1369,
FCDO,CSC,26/03/2021,Scholar Stipend,Award costs,Scholar,PIN052637,1116,
FCDO,CSC,26/03/2021,Scholar Stipend,Award costs,Scholar,PIN052638,1116,
FCDO,CSC,26/03/2021,Scholar Stipend,Award costs,Scholar,PIN052639,1116,
FCDO,CSC,26/03/2021,Scholar Stipend,Award costs,Scholar,PIN052640,1116,
FCDO,CSC,26/03/2021,Scholar Stipend,Award costs,Scholar,PIN052641,1116,
FCDO,CSC,26/03/2021,Scholar Stipend,Award costs,Scholar,PIN052642,1116,
FCDO,CSC,26/03/2021,Scholar Stipend,Award costs,Scholar,PIN052643,1116,
FCDO,CSC,26/03/2021,Scholar Stipend,Award costs,Scholar,PIN052644,1369,
FCDO,CSC,26/03/2021,Scholar Stipend,Award costs,Scholar,PIN052645,1116,
FCDO,CSC,26/03/2021,Scholar Stipend,Award costs,Scholar,PIN052646,1116,
FCDO,CSC,26/03/2021,Scholar Stipend,Award costs,Scholar,PIN052647,1369,
FCDO,CSC,26/03/2021,Scholar Stipend,Award costs,Scholar,PIN052648,1116,
FCDO,CSC,26/03/2021,Scholar Stipend,Award costs,Scholar,PIN052649,1116,
FCDO,CSC,26/03/2021,Scholar Stipend,Award costs,Scholar,PIN052650,1116,
FCDO,CSC,26/03/2021,Scholar Stipend,Award costs,Scholar,PIN052651,1116,
FCDO,CSC,26/03/2021,Scholar Stipend,Award costs,Scholar,PIN052652,1116,
FCDO,CSC,26/03/2021,Scholar Stipend,Award costs,Scholar,PIN052653,1116,
FCDO,CSC,26/03/2021,Scholar Stipend,Award costs,Scholar,PIN052654,1116,
FCDO,CSC,26/03/2021,Scholar Stipend,Award costs,Scholar,PIN052656,1116,
FCDO,CSC,26/03/2021,Scholar Stipend,Award costs,Scholar,PIN052657,558,
FCDO,CSC,26/03/2021,Scholar Stipend,Award costs,Scholar,PIN052658,1116,
FCDO,CSC,26/03/2021,Scholar Stipend,Award costs,Scholar,PIN052659,1116,
FCDO,CSC,26/03/2021,Scholar Stipend,Award costs,Scholar,PIN052660,1116,
FCDO,CSC,26/03/2021,Home Rate Stipend,Award costs,Scholar,PIN052667,721.86,
FCDO,CSC,26/03/2021,Home Rate Stipend,Award costs,Scholar,PIN052668,721.86,
FCDO,CSC,26/03/2021,Home Rate Stipend,Award costs,Scholar,PIN052669,721.86,
FCDO,CSC,26/03/2021,Home Rate Stipend,Award costs,Scholar,PIN052671,721.86,
FCDO,CSC,26/03/2021,Home Rate Stipend,Award costs,Scholar,PIN052673,721.86,
FCDO,CSC,26/03/2021,Home Rate Stipend,Award costs,Scholar,PIN052678,721.86,
FCDO,CSC,26/03/2021,Home Rate Stipend,Award costs,Scholar,PIN052680,721.86,
FCDO,CSC,26/03/2021,Home Rate Stipend,Award costs,Scholar,PIN052682,962.28,
FCDO,CSC,26/03/2021,Home Rate Stipend,Award costs,Scholar,PIN052684,962.28,
FCDO,CSC,26/03/2021,Scholar Stipend,Award costs,Scholar,PIN052795,607.19,
FCDO,CSC,26/03/2021,Scholar Stipend,Award costs,Scholar,PIN052797,531.64,
FCDO,CSC,26/03/2021,Visa Costs,Award costs,Scholar,PIN052799,244,
FCDO,CSC,26/03/2021,Visa Costs,Award costs,Scholar,PIN052799,244,
FCDO,CSC,26/03/2021,Visa Costs,Award costs,Scholar,PIN052799,244,
FCDO,CSC,26/03/2021,Scholar Allowances,Award costs,Scholar,PIN052799,958.22,
FCDO,CSC,26/03/2021,Scholar Allowances,Award costs,Scholar,PIN052799,958.22,
FCDO,CSC,26/03/2021,Scholar Allowances,Award costs,Scholar,PIN052799,958.22,
FCDO,CSC,26/03/2021,Scholar Stipend,Award costs,Scholar,PIN052799,5038.52,
FCDO,CSC,26/03/2021,Scholar Stipend,Award costs,Scholar,PIN052799,5038.52,
FCDO,CSC,26/03/2021,Scholar Stipend,Award costs,Scholar,PIN052799,5038.52,
FCDO,CSC,26/03/2021,Start-up Allowance,Award costs,Scholar,PIN052799,150,
FCDO,CSC,26/03/2021,Start-up Allowance,Award costs,Scholar,PIN052799,150,
FCDO,CSC,26/03/2021,Start-up Allowance,Award costs,Scholar,PIN052799,150,
FCDO,CSC,26/03/2021,Start-up Allowance,Award costs,Scholar,PIN052799,150,
FCDO,CSC,26/03/2021,Start-up Allowance,Award costs,Scholar,PIN052799,150,
FCDO,CSC,26/03/2021,Start-up Allowance,Award costs,Scholar,PIN052799,150,
FCDO,CSC,26/03/2021,Scholar Stipend,Award costs,Scholar,PIN052799,1712.15,
FCDO,CSC,26/03/2021,Scholar Stipend,Award costs,Scholar,PIN052799,426.8,
FCDO,CSC,26/03/2021,Scholar Stipend,Award costs,Scholar,PIN052799,962.28,
FCDO,CSC,26/03/2021,Scholar Stipend,Award costs,Scholar,PIN052799,1648.92,
FCDO,CSC,26/03/2021,Scholar Stipend,Award costs,Scholar,PIN052799,1404.88,
FCDO,CSC,26/03/2021,Scholar Stipend,Award costs,Scholar,PIN052799,1712.14,
FCDO,CSC,26/03/2021,Bank Charges,Programme Costs,MasterCard Prepaid Management Services Ltd,PIN052799,274.9,
FCDO,CSC,30/03/2021,Home Rate Stipend,Award costs,Scholar,PIN052800,481.14,
FCDO,CSC,30/03/2021,Home Rate Stipend,Award costs,Scholar,PIN052800,481.14,
FCDO,CSC,30/03/2021,Home Rate Stipend,Award costs,Scholar,PIN052800,481.14,
FCDO,CSC,30/03/2021,Home Rate Stipend,Award costs,Scholar,PIN052800,481.14,
FCDO,CSC,30/03/2021,Home Rate Stipend,Award costs,Scholar,PIN052800,481.14,
FCDO,CSC,30/03/2021,Home Rate Stipend,Award costs,Scholar,PIN052800,1203,
FCDO,CSC,30/03/2021,Home Rate Stipend,Award costs,Scholar,PIN052800,481.14,
FCDO,CSC,30/03/2021,Scholar Stipend,Award costs,Scholar,PIN052800,1369,
FCDO,CSC,30/03/2021,Home Rate Stipend,Award costs,Scholar,PIN052800,481.14,
FCDO,CSC,30/03/2021,Home Rate Stipend,Award costs,Scholar,PIN052800,481.14,
FCDO,CSC,30/03/2021,Home Rate Stipend,Award costs,Scholar,PIN052800,481.14,
FCDO,CSC,30/03/2021,Home Rate Stipend,Award costs,Scholar,PIN052800,481.14,
FCDO,CSC,30/03/2021,Home Rate Stipend,Award costs,Scholar,PIN052800,481.14,
FCDO,CSC,30/03/2021,Scholar Stipend,Award costs,Scholar,PIN052800,1116,
FCDO,CSC,30/03/2021,Home Rate Stipend,Award costs,Scholar,PIN052800,481.14,
FCDO,CSC,30/03/2021,Home Rate Stipend,Award costs,Scholar,PIN052800,481.14,
FCDO,CSC,30/03/2021,Home Rate Stipend,Award costs,Scholar,PIN052800,481.14,
FCDO,CSC,30/03/2021,Home Rate Stipend,Award costs,Scholar,PIN052800,481.14,
FCDO,CSC,30/03/2021,Home Rate Stipend,Award costs,Scholar,PIN052800,481.14,
FCDO,CSC,30/03/2021,Scholar Stipend,Award costs,Scholar,PIN052800,1704,
FCDO,CSC,30/03/2021,Home Rate Stipend,Award costs,Scholar,PIN052800,721.86,
FCDO,CSC,30/03/2021,Home Rate Stipend,Award costs,Scholar,PIN052800,481.14,
FCDO,CSC,30/03/2021,Home Rate Stipend,Award costs,Scholar,PIN052800,481.14,
FCDO,CSC,30/03/2021,Home Rate Stipend,Award costs,Scholar,PIN052800,481.14,
FCDO,CSC,30/03/2021,Home Rate Stipend,Award costs,Scholar,PIN052800,481.14,
FCDO,CSC,30/03/2021,Home Rate Stipend,Award costs,Scholar,PIN052800,481.14,
FCDO,CSC,30/03/2021,Home Rate Stipend,Award costs,Scholar,PIN052800,481.14,
FCDO,CSC,30/03/2021,Home Rate Stipend,Award costs,Scholar,PIN052800,481.14,
FCDO,CSC,30/03/2021,Home Rate Stipend,Award costs,Scholar,PIN052800,481.14,
FCDO,CSC,30/03/2021,Home Rate Stipend,Award costs,Scholar,PIN052800,481.14,
FCDO,CSC,30/03/2021,Home Rate Stipend,Award costs,Scholar,PIN052800,481.14,
FCDO,CSC,30/03/2021,Home Rate Stipend,Award costs,Scholar,PIN052800,481.14,
FCDO,CSC,30/03/2021,Home Rate Stipend,Award costs,Scholar,PIN052800,481.14,
FCDO,CSC,30/03/2021,Home Rate Stipend,Award costs,Scholar,PIN052800,481.14,
FCDO,CSC,30/03/2021,Scholar Stipend,Award costs,Scholar,PIN052800,1116,
FCDO,CSC,30/03/2021,Home Rate Stipend,Award costs,Scholar,PIN052800,481.14,
FCDO,CSC,30/03/2021,Home Rate Stipend,Award costs,Scholar,PIN052800,481.14,
FCDO,CSC,30/03/2021,Home Rate Stipend,Award costs,Scholar,PIN052800,481.14,
FCDO,CSC,30/03/2021,Scholar Stipend,Award costs,Scholar,PIN052800,1704,
FCDO,CSC,30/03/2021,Scholar Stipend,Award costs,Scholar,PIN052800,1704,
FCDO,CSC,30/03/2021,Home Rate Stipend,Award costs,Scholar,PIN052800,481.14,
FCDO,CSC,30/03/2021,Scholar Stipend,Award costs,Scholar,PIN052800,1116,
FCDO,CSC,30/03/2021,Home Rate Stipend,Award costs,Scholar,PIN052800,481.14,
FCDO,CSC,30/03/2021,Home Rate Stipend,Award costs,Scholar,PIN052800,481.14,
FCDO,CSC,30/03/2021,Home Rate Stipend,Award costs,Scholar,PIN052800,481.14,
FCDO,CSC,30/03/2021,Home Rate Stipend,Award costs,Scholar,PIN052800,481.14,
FCDO,CSC,30/03/2021,Home Rate Stipend,Award costs,Scholar,PIN052800,481.14,
FCDO,CSC,30/03/2021,Home Rate Stipend,Award costs,Scholar,PIN052800,721.86,
FCDO,CSC,30/03/2021,Home Rate Stipend,Award costs,Scholar,PIN052800,481.14,
FCDO,CSC,30/03/2021,Home Rate Stipend,Award costs,Scholar,PIN052800,481.14,
FCDO,CSC,30/03/2021,Home Rate Stipend,Award costs,Scholar,PIN052800,481.14,
FCDO,CSC,30/03/2021,Home Rate Stipend,Award costs,Scholar,PIN052800,481.14,
FCDO,CSC,30/03/2021,Home Rate Stipend,Award costs,Scholar,PIN052800,481.14,
FCDO,CSC,30/03/2021,Home Rate Stipend,Award costs,Scholar,PIN052800,481.14,
FCDO,CSC,30/03/2021,Home Rate Stipend,Award costs,Scholar,PIN052800,481.14,
FCDO,CSC,30/03/2021,Home Rate Stipend,Award costs,Scholar,PIN052800,481.14,
FCDO,CSC,30/03/2021,Scholar Stipend,Award costs,Scholar,PIN052800,1369,
FCDO,CSC,30/03/2021,Home Rate Stipend,Award costs,Scholar,PIN052800,481.14,
FCDO,CSC,30/03/2021,Scholar Stipend,Award costs,Scholar,PIN052800,1116,
FCDO,CSC,30/03/2021,Home Rate Stipend,Award costs,Scholar,PIN052800,481.14,
FCDO,CSC,30/03/2021,Home Rate Stipend,Award costs,Scholar,PIN052800,481.14,
FCDO,CSC,30/03/2021,Home Rate Stipend,Award costs,Scholar,PIN052800,481.14,
FCDO,CSC,30/03/2021,Home Rate Stipend,Award costs,Scholar,PIN052800,481.14,
FCDO,CSC,30/03/2021,Home Rate Stipend,Award costs,Scholar,PIN052800,481.14,
FCDO,CSC,30/03/2021,Home Rate Stipend,Award costs,Scholar,PIN052800,481.14,
FCDO,CSC,30/03/2021,Scholar Stipend,Award costs,Scholar,PIN052800,1116,
FCDO,CSC,30/03/2021,Scholar Allowances,Award costs,Scholar,PIN052800,240,
FCDO,CSC,30/03/2021,Scholar Allowances,Award costs,Scholar,PIN052800,240,
FCDO,CSC,30/03/2021,Home Rate Stipend,Award costs,Scholar,PIN052800,481.14,
FCDO,CSC,30/03/2021,Home Rate Stipend,Award costs,Scholar,PIN052800,481.14,
FCDO,CSC,30/03/2021,Home Rate Stipend,Award costs,Scholar,PIN052800,481.14,
FCDO,CSC,30/03/2021,Home Rate Stipend,Award costs,Scholar,PIN052800,481.14,
FCDO,CSC,30/03/2021,Home Rate Stipend,Award costs,Scholar,PIN052800,481.14,
FCDO,CSC,30/03/2021,Home Rate Stipend,Award costs,Scholar,PIN052800,1203,
FCDO,CSC,30/03/2021,Home Rate Stipend,Award costs,Scholar,PIN052800,481.14,
FCDO,CSC,30/03/2021,Scholar Stipend,Award costs,Scholar,PIN052800,1369,
FCDO,CSC,30/03/2021,Home Rate Stipend,Award costs,Scholar,PIN052800,481.14,
FCDO,CSC,30/03/2021,Home Rate Stipend,Award costs,Scholar,PIN052800,481.14,
FCDO,CSC,30/03/2021,Home Rate Stipend,Award costs,Scholar,PIN052800,481.14,
FCDO,CSC,30/03/2021,Home Rate Stipend,Award costs,Scholar,PIN052800,481.14,
FCDO,CSC,30/03/2021,Home Rate Stipend,Award costs,Scholar,PIN052800,481.14,
FCDO,CSC,30/03/2021,Scholar Stipend,Award costs,Scholar,PIN052800,1116,
FCDO,CSC,30/03/2021,Home Rate Stipend,Award costs,Scholar,PIN052800,481.14,
FCDO,CSC,30/03/2021,Home Rate Stipend,Award costs,Scholar,PIN052800,481.14,
FCDO,CSC,30/03/2021,Home Rate Stipend,Award costs,Scholar,PIN052800,481.14,
FCDO,CSC,30/03/2021,Home Rate Stipend,Award costs,Scholar,PIN052800,481.14,
FCDO,CSC,30/03/2021,Home Rate Stipend,Award costs,Scholar,PIN052800,481.14,
FCDO,CSC,30/03/2021,Scholar Stipend,Award costs,Scholar,PIN052800,1704,
FCDO,CSC,30/03/2021,Home Rate Stipend,Award costs,Scholar,PIN052800,721.86,
FCDO,CSC,30/03/2021,Home Rate Stipend,Award costs,Scholar,PIN052800,481.14,
FCDO,CSC,30/03/2021,Home Rate Stipend,Award costs,Scholar,PIN052800,481.14,
FCDO,CSC,30/03/2021,Home Rate Stipend,Award costs,Scholar,PIN052800,481.14,
FCDO,CSC,30/03/2021,Home Rate Stipend,Award costs,Scholar,PIN052800,481.14,
FCDO,CSC,30/03/2021,Home Rate Stipend,Award costs,Scholar,PIN052800,481.14,
FCDO,CSC,30/03/2021,Home Rate Stipend,Award costs,Scholar,PIN052800,481.14,
FCDO,CSC,30/03/2021,Home Rate Stipend,Award costs,Scholar,PIN052800,481.14,
FCDO,CSC,30/03/2021,Home Rate Stipend,Award costs,Scholar,PIN052800,481.14,
FCDO,CSC,30/03/2021,Home Rate Stipend,Award costs,Scholar,PIN052800,481.14,
FCDO,CSC,30/03/2021,Home Rate Stipend,Award costs,Scholar,PIN052800,481.14,
FCDO,CSC,30/03/2021,Home Rate Stipend,Award costs,Scholar,PIN052800,481.14,
FCDO,CSC,30/03/2021,Home Rate Stipend,Award costs,Scholar,PIN052800,481.14,
FCDO,CSC,30/03/2021,Home Rate Stipend,Award costs,Scholar,PIN052800,481.14,
FCDO,CSC,30/03/2021,Scholar Stipend,Award costs,Scholar,PIN052800,1116,
FCDO,CSC,30/03/2021,Home Rate Stipend,Award costs,Scholar,PIN052800,481.14,
FCDO,CSC,30/03/2021,Home Rate Stipend,Award costs,Scholar,PIN052800,481.14,
FCDO,CSC,30/03/2021,Home Rate Stipend,Award costs,Scholar,PIN052800,481.14,
FCDO,CSC,30/03/2021,Scholar Stipend,Award costs,Scholar,PIN052800,1704,
FCDO,CSC,30/03/2021,Scholar Stipend,Award costs,Scholar,PIN052800,1704,
FCDO,CSC,30/03/2021,Home Rate Stipend,Award costs,Scholar,PIN052800,481.14,
FCDO,CSC,30/03/2021,Scholar Stipend,Award costs,Scholar,PIN052800,1116,
FCDO,CSC,30/03/2021,Home Rate Stipend,Award costs,Scholar,PIN052800,481.14,
FCDO,CSC,30/03/2021,Home Rate Stipend,Award costs,Scholar,PIN052800,481.14,
FCDO,CSC,30/03/2021,Home Rate Stipend,Award costs,Scholar,PIN052800,481.14,
FCDO,CSC,30/03/2021,Home Rate Stipend,Award costs,Scholar,PIN052800,481.14,
FCDO,CSC,30/03/2021,Home Rate Stipend,Award costs,Scholar,PIN052800,481.14,
FCDO,CSC,30/03/2021,Home Rate Stipend,Award costs,Scholar,PIN052800,721.86,
FCDO,CSC,30/03/2021,Home Rate Stipend,Award costs,Scholar,PIN052800,481.14,
FCDO,CSC,30/03/2021,Home Rate Stipend,Award costs,Scholar,PIN052800,481.14,
FCDO,CSC,30/03/2021,Home Rate Stipend,Award costs,Scholar,PIN052800,481.14,
FCDO,CSC,30/03/2021,Home Rate Stipend,Award costs,Scholar,PIN052800,481.14,
FCDO,CSC,30/03/2021,Home Rate Stipend,Award costs,Scholar,PIN052800,481.14,
FCDO,CSC,30/03/2021,Home Rate Stipend,Award costs,Scholar,PIN052800,481.14,
FCDO,CSC,30/03/2021,Home Rate Stipend,Award costs,Scholar,PIN052800,481.14,
FCDO,CSC,30/03/2021,Home Rate Stipend,Award costs,Scholar,PIN052800,481.14,
FCDO,CSC,30/03/2021,Scholar Stipend,Award costs,Scholar,PIN052800,1369,
FCDO,CSC,30/03/2021,Home Rate Stipend,Award costs,Scholar,PIN052800,481.14,
FCDO,CSC,30/03/2021,Scholar Stipend,Award costs,Scholar,PIN052800,1116,
FCDO,CSC,30/03/2021,Home Rate Stipend,Award costs,Scholar,PIN052800,481.14,
FCDO,CSC,30/03/2021,Home Rate Stipend,Award costs,Scholar,PIN052800,481.14,
FCDO,CSC,30/03/2021,Home Rate Stipend,Award costs,Scholar,PIN052800,481.14,
FCDO,CSC,30/03/2021,Home Rate Stipend,Award costs,Scholar,PIN052800,481.14,
FCDO,CSC,30/03/2021,Home Rate Stipend,Award costs,Scholar,PIN052800,481.14,
FCDO,CSC,30/03/2021,Home Rate Stipend,Award costs,Scholar,PIN052800,481.14,
FCDO,CSC,30/03/2021,Scholar Stipend,Award costs,Scholar,PIN052800,1116,
FCDO,CSC,30/03/2021,Scholar Allowances,Award costs,Scholar,PIN052800,240,
FCDO,CSC,30/03/2021,Scholar Allowances,Award costs,Scholar,PIN052800,240,
FCDO,CSC,30/03/2021,Bank Charges,Programme Costs,MasterCard Prepaid Management Services Ltd,PIN052800,841,
FCDO,CSC,31/03/2021,Scholar Stipend,Award costs,Scholar,PIN052801,1116,
FCDO,CSC,31/03/2021,Scholar Stipend,Award costs,Scholar,PIN052802,1116,
FCDO,CSC,31/03/2021,Scholar Stipend,Award costs,Scholar,PIN052803,1369,
FCDO,CSC,31/03/2021,Scholar Stipend,Award costs,Scholar,PIN052804,1116,
FCDO,CSC,31/03/2021,Scholar Stipend,Award costs,Scholar,PIN052805,1116,
FCDO,CSC,31/03/2021,Scholar Stipend,Award costs,Scholar,PIN052806,1369,
FCDO,CSC,31/03/2021,Scholar Stipend,Award costs,Scholar,PIN052807,1116,
FCDO,CSC,31/03/2021,Scholar Stipend,Award costs,Scholar,PIN052808,1116,
FCDO,CSC,31/03/2021,Scholar Stipend,Award costs,Scholar,PIN052809,1116,
FCDO,CSC,31/03/2021,Scholar Stipend,Award costs,Scholar,PIN052810,1369,
FCDO,CSC,31/03/2021,Scholar Stipend,Award costs,Scholar,PIN052811,558,
FCDO,CSC,31/03/2021,Scholar Stipend,Award costs,Scholar,PIN052812,1369,
FCDO,CSC,31/03/2021,Scholar Stipend,Award costs,Scholar,PIN052813,1116,
FCDO,CSC,31/03/2021,Scholar Stipend,Award costs,Scholar,PIN052814,1116,
FCDO,CSC,31/03/2021,Scholar Stipend,Award costs,Scholar,PIN052815,1116,
FCDO,CSC,31/03/2021,Scholar Stipend,Award costs,Scholar,PIN052816,1116,
FCDO,CSC,31/03/2021,Scholar Stipend,Award costs,Scholar,PIN052817,1116,
FCDO,CSC,31/03/2021,Scholar Stipend,Award costs,Scholar,PIN052818,1116,
FCDO,CSC,31/03/2021,Scholar Stipend,Award costs,Scholar,PIN052819,1369,
FCDO,CSC,31/03/2021,Scholar Stipend,Award costs,Scholar,PIN052820,1116,
FCDO,CSC,31/03/2021,Scholar Stipend,Award costs,Scholar,PIN052821,1116,
FCDO,CSC,31/03/2021,Scholar Stipend,Award costs,Scholar,PIN052822,558,
FCDO,CSC,31/03/2021,Scholar Stipend,Award costs,Scholar,PIN052823,1116,
FCDO,CSC,31/03/2021,Scholar Stipend,Award costs,Scholar,PIN052824,1116,
FCDO,CSC,31/03/2021,Scholar Stipend,Award costs,Scholar,PIN052825,1116,
FCDO,CSC,31/03/2021,Scholar Stipend,Award costs,Scholar,PIN052826,1116,
FCDO,CSC,31/03/2021,Scholar Stipend,Award costs,Scholar,PIN052827,1116,
FCDO,CSC,31/03/2021,Scholar Stipend,Award costs,Scholar,PIN052828,1116,
FCDO,CSC,31/03/2021,Scholar Stipend,Award costs,Scholar,PIN052829,1116,
FCDO,CSC,31/03/2021,Scholar Stipend,Award costs,Scholar,PIN052830,1369,
FCDO,CSC,31/03/2021,Scholar Stipend,Award costs,Scholar,PIN052831,1116,
FCDO,CSC,31/03/2021,Scholar Stipend,Award costs,Scholar,PIN052832,1116,
FCDO,CSC,31/03/2021,Scholar Stipend,Award costs,Scholar,PIN052833,1116,
FCDO,CSC,31/03/2021,Scholar Stipend,Award costs,Scholar,PIN052834,1116,
FCDO,CSC,31/03/2021,Scholar Stipend,Award costs,Scholar,PIN052835,1116,
FCDO,CSC,31/03/2021,Scholar Stipend,Award costs,Scholar,PIN052836,1116,
FCDO,CSC,31/03/2021,Scholar Stipend,Award costs,Scholar,PIN052837,1116,
FCDO,CSC,31/03/2021,Scholar Stipend,Award costs,Scholar,PIN052838,1369,
FCDO,CSC,31/03/2021,Scholar Stipend,Award costs,Scholar,PIN052839,1369,
FCDO,CSC,31/03/2021,Scholar Stipend,Award costs,Scholar,PIN052840,1116,
FCDO,CSC,31/03/2021,Scholar Stipend,Award costs,Scholar,PIN052841,1116,
FCDO,CSC,31/03/2021,Scholar Stipend,Award costs,Scholar,PIN052842,1116,
FCDO,CSC,31/03/2021,Scholar Stipend,Award costs,Scholar,PIN052843,1116,
FCDO,CSC,31/03/2021,Scholar Stipend,Award costs,Scholar,PIN052844,1116,
FCDO,CSC,31/03/2021,Scholar Stipend,Award costs,Scholar,PIN052845,1116,
FCDO,CSC,31/03/2021,Scholar Stipend,Award costs,Scholar,PIN052846,1116,
FCDO,CSC,31/03/2021,Scholar Stipend,Award costs,Scholar,PIN052847,1116,
FCDO,CSC,31/03/2021,Scholar Stipend,Award costs,Scholar,PIN052848,1116,
FCDO,CSC,31/03/2021,Scholar Stipend,Award costs,Scholar,PIN052849,1116,
FCDO,CSC,31/03/2021,Scholar Stipend,Award costs,Scholar,PIN052850,1369,
FCDO,CSC,31/03/2021,Scholar Stipend,Award costs,Scholar,PIN052851,1116,
FCDO,CSC,31/03/2021,Scholar Stipend,Award costs,Scholar,PIN052852,1369,
FCDO,CSC,31/03/2021,Scholar Stipend,Award costs,Scholar,PIN052853,1116,
FCDO,CSC,31/03/2021,Scholar Stipend,Award costs,Scholar,PIN052854,1369,
FCDO,CSC,31/03/2021,Scholar Stipend,Award costs,Scholar,PIN052855,1116,
FCDO,CSC,31/03/2021,Scholar Stipend,Award costs,Scholar,PIN052856,1116,
FCDO,CSC,31/03/2021,Scholar Stipend,Award costs,Scholar,PIN052857,1116,
FCDO,CSC,31/03/2021,Scholar Stipend,Award costs,Scholar,PIN052858,1116,
FCDO,CSC,31/03/2021,Scholar Stipend,Award costs,Scholar,PIN052859,1116,
FCDO,CSC,31/03/2021,Scholar Stipend,Award costs,Scholar,PIN052860,1369,
FCDO,CSC,31/03/2021,Scholar Stipend,Award costs,Scholar,PIN052861,1116,
FCDO,CSC,31/03/2021,Scholar Stipend,Award costs,Scholar,PIN052862,1369,
FCDO,CSC,31/03/2021,Scholar Stipend,Award costs,Scholar,PIN052863,1116,
FCDO,CSC,31/03/2021,Scholar Stipend,Award costs,Scholar,PIN052864,558,
FCDO,CSC,31/03/2021,Scholar Stipend,Award costs,Scholar,PIN052865,1116,
FCDO,CSC,31/03/2021,Scholar Stipend,Award costs,Scholar,PIN052866,1116,
FCDO,CSC,31/03/2021,Scholar Stipend,Award costs,Scholar,PIN052867,1116,
FCDO,CSC,31/03/2021,Scholar Stipend,Award costs,Scholar,PIN052868,1116,
FCDO,CSC,31/03/2021,Scholar Stipend,Award costs,Scholar,PIN052869,1116,
FCDO,CSC,31/03/2021,Scholar Stipend,Award costs,Scholar,PIN052870,1116,
FCDO,CSC,31/03/2021,Scholar Stipend,Award costs,Scholar,PIN052871,1116,
FCDO,CSC,31/03/2021,Scholar Stipend,Award costs,Scholar,PIN052872,1116,
FCDO,CSC,31/03/2021,Scholar Stipend,Award costs,Scholar,PIN052873,1116,
FCDO,CSC,31/03/2021,Scholar Stipend,Award costs,Scholar,PIN052874,1116,
FCDO,CSC,31/03/2021,Scholar Stipend,Award costs,Scholar,PIN052875,1116,
FCDO,CSC,31/03/2021,Scholar Stipend,Award costs,Scholar,PIN052876,1116,
FCDO,CSC,31/03/2021,Scholar Stipend,Award costs,Scholar,PIN052877,1116,
FCDO,CSC,31/03/2021,Scholar Stipend,Award costs,Scholar,PIN052878,1116,
FCDO,CSC,31/03/2021,Scholar Stipend,Award costs,Scholar,PIN052879,1116,
FCDO,CSC,31/03/2021,Scholar Stipend,Award costs,Scholar,PIN052880,1116,
FCDO,CSC,31/03/2021,Scholar Stipend,Award costs,Scholar,PIN052881,684.5,
FCDO,CSC,31/03/2021,Scholar Stipend,Award costs,Scholar,PIN052882,1116,
FCDO,CSC,31/03/2021,Scholar Stipend,Award costs,Scholar,PIN052883,1116,
FCDO,CSC,31/03/2021,Scholar Stipend,Award costs,Scholar,PIN052884,1116,
FCDO,CSC,31/03/2021,Scholar Stipend,Award costs,Scholar,PIN052885,1369,
FCDO,CSC,31/03/2021,Scholar Stipend,Award costs,Scholar,PIN052886,1369,
FCDO,CSC,31/03/2021,Scholar Stipend,Award costs,Scholar,PIN052887,1116,
FCDO,CSC,31/03/2021,Scholar Stipend,Award costs,Scholar,PIN052888,1116,
FCDO,CSC,31/03/2021,Scholar Stipend,Award costs,Scholar,PIN052889,1116,
FCDO,CSC,31/03/2021,Scholar Stipend,Award costs,Scholar,PIN052890,1116,
FCDO,CSC,31/03/2021,Scholar Stipend,Award costs,Scholar,PIN052891,1116,
FCDO,CSC,31/03/2021,Scholar Stipend,Award costs,Scholar,PIN052892,1369,
FCDO,CSC,31/03/2021,Scholar Stipend,Award costs,Scholar,PIN052893,1116,
FCDO,CSC,31/03/2021,Scholar Stipend,Award costs,Scholar,PIN052894,1116,
FCDO,CSC,31/03/2021,Scholar Stipend,Award costs,Scholar,PIN052895,1116,
FCDO,CSC,31/03/2021,Scholar Stipend,Award costs,Scholar,PIN052896,1116,
FCDO,CSC,31/03/2021,Scholar Stipend,Award costs,Scholar,PIN052897,1116,
FCDO,CSC,31/03/2021,Scholar Stipend,Award costs,Scholar,PIN052898,1116,
FCDO,CSC,31/03/2021,Scholar Stipend,Award costs,Scholar,PIN052899,1116,
FCDO,CSC,31/03/2021,Scholar Stipend,Award costs,Scholar,PIN052900,1116,
FCDO,CSC,31/03/2021,Scholar Stipend,Award costs,Scholar,PIN052901,1116,
FCDO,CSC,31/03/2021,Scholar Stipend,Award costs,Scholar,PIN052902,1116,
FCDO,CSC,31/03/2021,Scholar Stipend,Award costs,Scholar,PIN052903,1116,
FCDO,CSC,31/03/2021,Scholar Stipend,Award costs,Scholar,PIN052904,1116,
FCDO,CSC,31/03/2021,Scholar Stipend,Award costs,Scholar,PIN052905,1369,
FCDO,CSC,31/03/2021,Scholar Stipend,Award costs,Scholar,PIN052906,1116,
FCDO,CSC,31/03/2021,Scholar Stipend,Award costs,Scholar,PIN052907,1369,
FCDO,CSC,31/03/2021,Scholar Stipend,Award costs,Scholar,PIN052908,1116,
FCDO,CSC,31/03/2021,Scholar Stipend,Award costs,Scholar,PIN052909,1116,
FCDO,CSC,31/03/2021,Scholar Stipend,Award costs,Scholar,PIN052910,1116,
FCDO,CSC,31/03/2021,Scholar Stipend,Award costs,Scholar,PIN052911,1369,
FCDO,CSC,31/03/2021,Scholar Stipend,Award costs,Scholar,PIN052912,1116,
FCDO,CSC,31/03/2021,Scholar Stipend,Award costs,Scholar,PIN052913,1116,
FCDO,CSC,31/03/2021,Scholar Stipend,Award costs,Scholar,PIN052914,1116,
FCDO,CSC,31/03/2021,Scholar Stipend,Award costs,Scholar,PIN052915,1116,
FCDO,CSC,31/03/2021,Scholar Stipend,Award costs,Scholar,PIN052916,1116,
FCDO,CSC,31/03/2021,Scholar Stipend,Award costs,Scholar,PIN052917,1116,
FCDO,CSC,31/03/2021,Scholar Stipend,Award costs,Scholar,PIN052918,1369,
FCDO,CSC,31/03/2021,Scholar Stipend,Award costs,Scholar,PIN052919,1116,
FCDO,CSC,31/03/2021,Scholar Stipend,Award costs,Scholar,PIN052920,1116,
FCDO,CSC,31/03/2021,Scholar Stipend,Award costs,Scholar,PIN052921,1116,
FCDO,CSC,31/03/2021,Scholar Stipend,Programme Costs,Scholar,PIN052922,1116,
FCDO,CSC,31/03/2021,Scholar Stipend,Award costs,Scholar,PIN052923,1116,
FCDO,CSC,31/03/2021,Scholar Stipend,Award costs,Scholar,PIN052924,1116,
FCDO,CSC,31/03/2021,Scholar Stipend,Award costs,Scholar,PIN052925,1116,
FCDO,CSC,31/03/2021,Scholar Stipend,Award costs,Scholar,PIN052926,1116,
FCDO,CSC,31/03/2021,Scholar Stipend,Award costs,Scholar,PIN052927,1116,
FCDO,CSC,31/03/2021,Scholar Stipend,Award costs,Scholar,PIN052928,1116,
FCDO,CSC,31/03/2021,Scholar Stipend,Award costs,Scholar,PIN052929,1116,
FCDO,CSC,31/03/2021,Scholar Stipend,Award costs,Scholar,PIN052930,558,
FCDO,CSC,31/03/2021,Scholar Stipend,Award costs,Scholar,PIN052931,1116,
FCDO,CSC,31/03/2021,Scholar Stipend,Award costs,Scholar,PIN052932,1369,
FCDO,CSC,31/03/2021,Scholar Stipend,Award costs,Scholar,PIN052933,558,
FCDO,CSC,31/03/2021,Scholar Stipend,Award costs,Scholar,PIN052934,558,
FCDO,CSC,31/03/2021,Scholar Stipend,Award costs,Scholar,PIN052935,1116,
FCDO,CSC,31/03/2021,Scholar Stipend,Award costs,Scholar,PIN052936,1116,
FCDO,CSC,31/03/2021,Scholar Stipend,Award costs,Scholar,PIN052937,1116,
FCDO,CSC,31/03/2021,Scholar Stipend,Award costs,Scholar,PIN052938,1116,
FCDO,CSC,31/03/2021,Scholar Stipend,Award costs,Scholar,PIN052939,1369,
FCDO,CSC,31/03/2021,Scholar Stipend,Award costs,Scholar,PIN052940,1116,
FCDO,CSC,31/03/2021,Scholar Stipend,Award costs,Scholar,PIN052941,1369,
FCDO,CSC,31/03/2021,Scholar Stipend,Award costs,Scholar,PIN052942,558,
FCDO,CSC,31/03/2021,Scholar Stipend,Award costs,Scholar,PIN052943,1369,
FCDO,CSC,31/03/2021,Scholar Stipend,Award costs,Scholar,PIN052944,1116,
FCDO,CSC,31/03/2021,Scholar Stipend,Award costs,Scholar,PIN052945,558,
FCDO,CSC,31/03/2021,Scholar Stipend,Award costs,Scholar,PIN052946,1369,
FCDO,CSC,31/03/2021,Scholar Stipend,Award costs,Scholar,PIN052947,1116,
FCDO,CSC,31/03/2021,Scholar Stipend,Award costs,Scholar,PIN052948,1369,
FCDO,CSC,31/03/2021,Scholar Stipend,Award costs,Scholar,PIN052949,1369,
FCDO,CSC,31/03/2021,Scholar Stipend,Award costs,Scholar,PIN052950,1116,
FCDO,CSC,31/03/2021,Scholar Stipend,Award costs,Scholar,PIN052951,1116,
FCDO,CSC,31/03/2021,Scholar Stipend,Award costs,Scholar,PIN052952,1116,
FCDO,CSC,31/03/2021,Scholar Stipend,Award costs,Scholar,PIN052953,1116,
FCDO,CSC,31/03/2021,Scholar Stipend,Award costs,Scholar,PIN052954,1116,
FCDO,CSC,31/03/2021,Scholar Stipend,Award costs,Scholar,PIN052955,1116,
FCDO,CSC,31/03/2021,Scholar Stipend,Award costs,Scholar,PIN052956,1369,
FCDO,CSC,31/03/2021,Scholar Stipend,Award costs,Scholar,PIN052957,1116,
FCDO,CSC,31/03/2021,Scholar Stipend,Award costs,Scholar,PIN052958,1116,
FCDO,CSC,31/03/2021,Scholar Stipend,Award costs,Scholar,PIN052959,1116,
FCDO,CSC,31/03/2021,Scholar Stipend,Award costs,Scholar,PIN052960,1116,
FCDO,CSC,31/03/2021,Scholar Stipend,Award costs,Scholar,PIN052961,1116,
FCDO,CSC,31/03/2021,Scholar Stipend,Award costs,Scholar,PIN052962,1116,
FCDO,CSC,31/03/2021,Scholar Stipend,Award costs,Scholar,PIN052963,1116,
FCDO,CSC,31/03/2021,Scholar Stipend,Award costs,Scholar,PIN052964,1369,
FCDO,CSC,31/03/2021,Scholar Stipend,Award costs,Scholar,PIN052965,1116,
FCDO,CSC,31/03/2021,Scholar Stipend,Award costs,Scholar,PIN052966,1116,
FCDO,CSC,31/03/2021,Scholar Stipend,Award costs,Scholar,PIN052967,1116,
FCDO,CSC,31/03/2021,Scholar Stipend,Award costs,Scholar,PIN052968,1116,
FCDO,CSC,31/03/2021,Scholar Stipend,Award costs,Scholar,PIN052969,558,
FCDO,CSC,31/03/2021,Scholar Stipend,Award costs,Scholar,PIN052970,1116,
FCDO,CSC,31/03/2021,Scholar Stipend,Award costs,Scholar,PIN052971,1116,
FCDO,CSC,31/03/2021,Scholar Stipend,Award costs,Scholar,PIN052972,558,
FCDO,CSC,31/03/2021,Scholar Stipend,Award costs,Scholar,PIN052973,1116,
FCDO,CSC,31/03/2021,Scholar Stipend,Award costs,Scholar,PIN052974,1116,
FCDO,CSC,31/03/2021,Scholar Stipend,Award costs,Scholar,PIN052975,1116,
FCDO,CSC,31/03/2021,Scholar Stipend,Award costs,Scholar,PIN052976,1369,
FCDO,CSC,31/03/2021,Scholar Stipend,Award costs,Scholar,PIN052977,1116,
FCDO,CSC,31/03/2021,Scholar Stipend,Award costs,Scholar,PIN052978,1116,
FCDO,CSC,31/03/2021,Scholar Stipend,Award costs,Scholar,PIN052979,1116,
FCDO,CSC,31/03/2021,Scholar Stipend,Award costs,Scholar,PIN052980,1116,
FCDO,CSC,31/03/2021,Scholar Stipend,Award costs,Scholar,PIN052981,1116,
FCDO,CSC,31/03/2021,Scholar Stipend,Award costs,Scholar,PIN052982,1369,
FCDO,CSC,31/03/2021,Scholar Stipend,Award costs,Scholar,PIN052984,1116,
FCDO,CSC,31/03/2021,Scholar Stipend,Award costs,Scholar,PIN052985,558,
FCDO,CSC,31/03/2021,Scholar Stipend,Award costs,Scholar,PIN052986,1369,
FCDO,CSC,31/03/2021,Scholar Stipend,Award costs,Scholar,PIN052987,1116,
FCDO,CSC,31/03/2021,Scholar Stipend,Award costs,Scholar,PIN052988,1116,
FCDO,CSC,31/03/2021,Scholar Stipend,Award costs,Scholar,PIN052989,1116,
FCDO,CSC,31/03/2021,Scholar Stipend,Award costs,Scholar,PIN052990,1116,
FCDO,CSC,31/03/2021,Scholar Stipend,Award costs,Scholar,PIN052991,1116,
FCDO,CSC,31/03/2021,Scholar Stipend,Award costs,Scholar,PIN052992,558,
FCDO,CSC,31/03/2021,Scholar Stipend,Award costs,Scholar,PIN052993,1116,
FCDO,CSC,31/03/2021,Scholar Stipend,Award costs,Scholar,PIN052994,1369,
FCDO,CSC,31/03/2021,Scholar Stipend,Award costs,Scholar,PIN052995,1116,
FCDO,CSC,31/03/2021,Scholar Stipend,Award costs,Scholar,PIN052996,1116,
FCDO,CSC,31/03/2021,Scholar Stipend,Award costs,Scholar,PIN052997,1116,
FCDO,CSC,31/03/2021,Scholar Stipend,Award costs,Scholar,PIN052998,1116,
FCDO,CSC,31/03/2021,Scholar Stipend,Award costs,Scholar,PIN052999,1369,
FCDO,CSC,31/03/2021,Scholar Stipend,Award costs,Scholar,PIN053000,1116,
FCDO,CSC,31/03/2021,Scholar Stipend,Award costs,Scholar,PIN053001,1116,
FCDO,CSC,31/03/2021,Scholar Stipend,Award costs,Scholar,PIN053002,1116,
FCDO,CSC,31/03/2021,Scholar Stipend,Award costs,Scholar,PIN053003,1369,
FCDO,CSC,31/03/2021,Scholar Stipend,Award costs,Scholar,PIN053004,1116,
FCDO,CSC,31/03/2021,Scholar Stipend,Award costs,Scholar,PIN053005,1116,
FCDO,CSC,31/03/2021,Scholar Stipend,Award costs,Scholar,PIN053006,1116,
FCDO,CSC,31/03/2021,Scholar Stipend,Award costs,Scholar,PIN053007,1116,
FCDO,CSC,31/03/2021,Scholar Stipend,Award costs,Scholar,PIN053008,1116,
FCDO,CSC,31/03/2021,Scholar Stipend,Award costs,Scholar,PIN053009,1369,
FCDO,CSC,31/03/2021,Scholar Stipend,Award costs,Scholar,PIN053010,1369,
FCDO,CSC,31/03/2021,Scholar Stipend,Award costs,Scholar,PIN053011,1369,
FCDO,CSC,31/03/2021,Scholar Stipend,Award costs,Scholar,PIN053012,1116,
FCDO,CSC,31/03/2021,Scholar Stipend,Award costs,Scholar,PIN053013,1116,
FCDO,CSC,31/03/2021,Scholar Stipend,Award costs,Scholar,PIN053014,1369,
FCDO,CSC,31/03/2021,Scholar Stipend,Award costs,Scholar,PIN053015,1116,
FCDO,CSC,31/03/2021,Scholar Stipend,Award costs,Scholar,PIN053016,1369,
FCDO,CSC,31/03/2021,Scholar Stipend,Award costs,Scholar,PIN053018,1116,
FCDO,CSC,31/03/2021,Scholar Stipend,Award costs,Scholar,PIN053019,1116,
FCDO,CSC,31/03/2021,Scholar Stipend,Award costs,Scholar,PIN053020,1369,
FCDO,CSC,31/03/2021,Scholar Stipend,Award costs,Scholar,PIN053021,1116,
FCDO,CSC,31/03/2021,Scholar Stipend,Award costs,Scholar,PIN053022,1116,
FCDO,CSC,31/03/2021,Scholar Stipend,Award costs,Scholar,PIN053023,1369,
FCDO,CSC,31/03/2021,Scholar Stipend,Award costs,Scholar,PIN053024,1116,
FCDO,CSC,31/03/2021,Scholar Stipend,Award costs,Scholar,PIN053025,1116,
FCDO,CSC,31/03/2021,Scholar Stipend,Award costs,Scholar,PIN053026,1116,
FCDO,CSC,31/03/2021,Scholar Stipend,Award costs,Scholar,PIN053027,1116,
FCDO,CSC,31/03/2021,Scholar Stipend,Award costs,Scholar,PIN053028,1369,
FCDO,CSC,31/03/2021,Scholar Stipend,Award costs,Scholar,PIN053029,1369,
FCDO,CSC,31/03/2021,Scholar Stipend,Award costs,Scholar,PIN053030,684.5,
FCDO,CSC,31/03/2021,Scholar Stipend,Award costs,Scholar,PIN053031,1116,
FCDO,CSC,31/03/2021,Scholar Stipend,Award costs,Scholar,PIN053032,1116,
FCDO,CSC,31/03/2021,Scholar Stipend,Award costs,Scholar,PIN053033,1369,
FCDO,CSC,31/03/2021,Scholar Stipend,Award costs,Scholar,PIN053034,1116,
FCDO,CSC,31/03/2021,Scholar Stipend,Award costs,Scholar,PIN053035,1116,
FCDO,CSC,31/03/2021,Scholar Stipend,Award costs,Scholar,PIN053036,1116,
FCDO,CSC,31/03/2021,Scholar Stipend,Award costs,Scholar,PIN053037,1116,
FCDO,CSC,31/03/2021,Scholar Stipend,Award costs,Scholar,PIN053038,1116,
FCDO,CSC,31/03/2021,Scholar Stipend,Award costs,Scholar,PIN053039,1116,
FCDO,CSC,31/03/2021,Scholar Stipend,Award costs,Scholar,PIN053040,1116,
FCDO,CSC,31/03/2021,Scholar Stipend,Award costs,Scholar,PIN053041,1369,
FCDO,CSC,31/03/2021,Scholar Stipend,Award costs,Scholar,PIN053042,1116,
FCDO,CSC,31/03/2021,Scholar Stipend,Award costs,Scholar,PIN053043,1369,
FCDO,CSC,31/03/2021,Scholar Stipend,Award costs,Scholar,PIN053044,1116,
FCDO,CSC,31/03/2021,Scholar Stipend,Award costs,Scholar,PIN053045,1116,
FCDO,CSC,31/03/2021,Scholar Stipend,Award costs,Scholar,PIN053046,1116,
FCDO,CSC,31/03/2021,Scholar Stipend,Award costs,Scholar,PIN053047,1116,
FCDO,CSC,31/03/2021,Scholar Stipend,Award costs,Scholar,PIN053048,1116,
FCDO,CSC,31/03/2021,Scholar Stipend,Award costs,Scholar,PIN053049,1116,
FCDO,CSC,31/03/2021,Scholar Stipend,Award costs,Scholar,PIN053050,1116,
FCDO,CSC,31/03/2021,Scholar Stipend,Award costs,Scholar,PIN053051,558,
FCDO,CSC,31/03/2021,Scholar Stipend,Award costs,Scholar,PIN053052,1116,
FCDO,CSC,31/03/2021,Scholar Stipend,Award costs,Scholar,PIN053053,558,
FCDO,CSC,31/03/2021,Scholar Stipend,Award costs,Scholar,PIN053054,1116,
FCDO,CSC,31/03/2021,Scholar Stipend,Award costs,Scholar,PIN053055,1116,
FCDO,CSC,31/03/2021,Scholar Stipend,Award costs,Scholar,PIN053056,1116,
FCDO,CSC,31/03/2021,Advances Repayments,Award costs,Scholar,PIN053058,-962.28,
FCDO,CSC,31/03/2021,Advances Repayments,Award costs,Scholar,PIN053059,-871.47,
FCDO,CSC,31/03/2021,Scholar Allowances,Award costs,Scholar,PIN053092,594,
FCDO,CSC,31/03/2021,Scholar Stipend,Award costs,Scholar,PIN053161,1034.64,
FCDO,CSC,31/03/2021,Scholar Stipend,Award costs,Scholar,PIN053162,854.52,
FCDO,CSC,31/03/2021,Tuition Fee,Award costs,University of Manchester,PIN053163,18000,
FCDO,CSC,31/03/2021,Tuition Fee,Award costs,University of Manchester,PIN053164,18000,
FCDO,CSC,31/03/2021,Award Support Costs,Award costs,Imperial College London,PIN053165,6000,
FCDO,CSC,31/03/2021,Tuition Fee,Award costs,Imperial College London,PIN053165,9000,
FCDO,CSC,31/03/2021,Tuition Fee,Award costs,Imperial College London,PIN053165,9000,
DFE,CSC,31/03/2021,Tuition Fee,Award costs,The Cambridge Commonwealth Trust,PIN053166,24531,
FCDO,CSC,31/03/2021,Tuition Fee,Award costs,University of Essex,PIN053167,8246,
FCDO,CSC,31/03/2021,Award Support Costs,Award costs,Kings College London,PIN053168,5000,
FCDO,CSC,31/03/2021,Scholar Travel,Award costs,BATH SPA UNIVERSITY,PIN053169,14.5,
FCDO,CSC,31/03/2021,Scholar Allowances,Award costs,BATH SPA UNIVERSITY,PIN053169,280,
FCDO,CSC,31/03/2021,Scholar Travel,Award costs,BATH SPA UNIVERSITY,PIN053169,23.35,
FCDO,CSC,31/03/2021,Scholar Allowances,Award costs,BATH SPA UNIVERSITY,PIN053169,225,
FCDO,CSC,31/03/2021,Scholar Travel,Award costs,BATH SPA UNIVERSITY,PIN053169,1101.75,
FCDO,CSC,31/03/2021,Scholar Travel,Award costs,BATH SPA UNIVERSITY,PIN053169,366.2,
FCDO,CSC,31/03/2021,Visa Costs,Award costs,Scholar,PIN053170,263,
FCDO,CSC,31/03/2021,Immigration Health Surcharge,Award costs,Scholar,PIN053170,312,
FCDO,CSC,31/03/2021,Tuition Fee,Award costs,The Cambridge Commonwealth Trust,PIN053171,-18000,
FCDO,CSC,31/03/2021,Tuition Fee,Award costs,The Cambridge Commonwealth Trust,PIN053172,18000,
FCDO,CSC,31/03/2021,Tuition Fee,Award costs,The Cambridge Commonwealth Trust,PIN053172,18000,
FCDO,CSC,31/03/2021,Tuition Fee,Award costs,The Cambridge Commonwealth Trust,PIN053172,18000,
FCDO,CSC,31/03/2021,Award Support Costs,Award costs,University of Oxford,PIN053174,6000,
FCDO,CSC,31/03/2021,Tuition Fee,Award costs,The University of Nottingham,PIN053175,11868,
FCDO,CSC,31/03/2021,Tuition Fee,Award costs,University of Strathclyde,PIN053176,16100,
FCDO,CSC,31/03/2021,Tuition Fee,Award costs,University of Strathclyde,PIN053177,16720,
FCDO,CSC,31/03/2021,Tuition Fee,Award costs,Oxford Brookes University,PIN053178,9833,
FCDO,CSC,31/03/2021,Tuition Fee,Award costs,Nottingham Trent University,PIN053179,15100,
FCDO,CSC,31/03/2021,Award Support Costs,Award costs,Salford Royal NHS Foundation Trust,PIN053180,2000,
FCDO,CSC,31/03/2021,Award Support Costs,Award costs,Salford Royal NHS Foundation Trust,PIN053181,2000,
FCDO,CSC,31/03/2021,Tuition Fee,Award costs,University of Sheffield,PIN053182,14080,
FCDO,CSC,31/03/2021,Tuition Fee,Award costs,The University of Leeds,PIN053183,15600,
FCDO,CSC,31/03/2021,Award Support Costs,Award costs,Cardiff University,PIN053184,11500,
FCDO,CSC,31/03/2021,Award Support Costs,Award costs,University of Southampton,PIN053185,3500,
FCDO,CSC,31/03/2021,Award Support Costs,Award costs,Imperial College London,PIN053186,5000,
FCDO,CSC,31/03/2021,Tuition Fee,Award costs,Imperial College London,PIN053186,9000,
FCDO,CSC,31/03/2021,Award Support Costs,Award costs,The University of Nottingham,PIN053187,1300,
FCDO,CSC,31/03/2021,Tuition Fee,Award costs,The University of Nottingham,PIN053188,7368,
FCDO,CSC,31/03/2021,Award Support Costs,Award costs,The University of Nottingham,PIN053189,10000,
FCDO,CSC,31/03/2021,Alumni Engagement,Programme Costs,TFW Printers,PIN053190,32800,
FCDO,CSC,31/03/2021,Scholar Travel,Award costs,Diversity Travel,PIN053192,114.9,
FCDO,CSC,31/03/2021,Scholar Travel,Award costs,Diversity Travel,PIN053192,618.22,
FCDO,CSC,31/03/2021,Scholar Travel,Award costs,Diversity Travel,PIN053192,408.92,
FCDO,CSC,31/03/2021,Scholar Travel,Award costs,Diversity Travel,PIN053192,63.4,
FCDO,CSC,31/03/2021,Scholar Travel,Award costs,Diversity Travel,PIN053192,14.5,
FCDO,CSC,31/03/2021,Scholar Travel,Award costs,Diversity Travel,PIN053192,57,
FCDO,CSC,31/03/2021,Scholar Travel,Award costs,Diversity Travel,PIN053192,569.55,
FCDO,CSC,31/03/2021,Scholar Travel,Award costs,Diversity Travel,PIN053193,806.26,
FCDO,CSC,31/03/2021,Scholar Travel,Award costs,Diversity Travel,PIN053193,521.54,
FCDO,CSC,31/03/2021,Scholar Travel,Award costs,Diversity Travel,PIN053193,507.72,
FCDO,CSC,31/03/2021,Scholar Travel,Award costs,Diversity Travel,PIN053193,485.92,
FCDO,CSC,31/03/2021,Scholar Travel,Award costs,Diversity Travel,PIN053193,404.14,
FCDO,CSC,31/03/2021,Scholar Travel,Award costs,Diversity Travel,PIN053193,42.25,
FCDO,CSC,31/03/2021,Photocopying,Admin Costs,Association of Commonwealth Univs,PIN053195,7023.11,
FCDO,CSC,31/03/2021,Engagement,Admin Costs,Association of Commonwealth Univs,PIN053195,15180,
FCDO,CSC,31/03/2021,Bank Charges,Admin Costs,Association of Commonwealth Univs,PIN053195,14.4,
FCDO,CSC,31/03/2021,Consultancy,Admin Costs,Association of Commonwealth Univs,PIN053195,1080,
FCDO,CSC,31/03/2021,Consultancy,Admin Costs,Association of Commonwealth Univs,PIN053195,1080,
FCDO,CSC,31/03/2021,Scholar Allowances,Award costs,Scholar,PIN053199,511.54,
FCDO,CSC,31/03/2021,Scholar Allowances,Award costs,Scholar,PIN053199,763.04,
FCDO,CSC,05/03/2021,Scholar Stipend,Award costs,Scholar,PRF000209,-1000,
